Body Name,Date,Transaction Number,Net Amount,Supplier Name,Service Label    ,Service Division Label,Organisational Unit,Expenditure Category,CIPFA Detailed Expenditure Type, Capital and Revenue
Cherwell District Council,18/12/2020,C050795,8302.80,1st Executive,Chief Finance Officer,Finance and Procurement,Finance & Procurement,Agency Staff,Employees,Revenue
Cherwell District Council,18/12/2020,C050796,8302.80,1st Executive,Chief Finance Officer,Finance and Procurement,Finance & Procurement,Agency Staff,Employees,Revenue
Cherwell District Council,30/12/2020,C051034,5372.40,1st Executive,Chief Finance Officer,Finance and Procurement,Finance & Procurement,Agency Staff,Employees,Revenue
Cherwell District Council,07/12/2020,C050360,681.15,A & C Weber UK Ltd,Current Assets,Inventories,Finance & Procurement,Stores Purchases,Payments Made,Balance Sheet
Cherwell District Council,07/12/2020,C050360,681.15,A & C Weber UK Ltd,Current Assets,Inventories,Finance & Procurement,Stores Purchases,Payments Made,Balance Sheet
Cherwell District Council,07/12/2020,C050360,2772.50,A & C Weber UK Ltd,Current Assets,Inventories,Finance & Procurement,Stores Purchases,Payments Made,Balance Sheet
Cherwell District Council,07/12/2020,C050360,3327.00,A & C Weber UK Ltd,Current Assets,Inventories,Finance & Procurement,Stores Purchases,Payments Made,Balance Sheet
Cherwell District Council,07/12/2020,C050360,733.00,A & C Weber UK Ltd,Current Assets,Inventories,Finance & Procurement,Stores Purchases,Payments Made,Balance Sheet
Cherwell District Council,07/12/2020,C050361,414.08,A & C Weber UK Ltd,Current Assets,Inventories,Finance & Procurement,Stores Purchases,Payments Made,Balance Sheet
Cherwell District Council,07/12/2020,C050361,2160.64,A & C Weber UK Ltd,Current Assets,Inventories,Finance & Procurement,Stores Purchases,Payments Made,Balance Sheet
Cherwell District Council,07/12/2020,C050361,2160.64,A & C Weber UK Ltd,Current Assets,Inventories,Finance & Procurement,Stores Purchases,Payments Made,Balance Sheet
Cherwell District Council,07/12/2020,C050361,414.08,A & C Weber UK Ltd,Current Assets,Inventories,Finance & Procurement,Stores Purchases,Payments Made,Balance Sheet
Cherwell District Council,23/12/2020,C050836,1520.46,Adept Telecom,Commercial Development,Information Services,ICT,Telephone Rentals & Calls Exps,Supplies and Services,Revenue
Cherwell District Council,23/12/2020,C050951,508.25,AJW Property Care,Commercial Development,Regeneration and Housing,Regeneration & Housing,Consultants Fees,Third Party Payments,Revenue
Cherwell District Council,23/12/2020,C050952,1055.00,AJW Property Care,Commercial Development Capital,Capital Regen and Housing,Regeneration & Housing,Contractors Capital Payments,Capital Works,Capital
Cherwell District Council,23/12/2020,C050968,520.00,AJW Property Care,Commercial Development Capital,Capital Regen and Housing,Regeneration & Housing,Contractors Capital Payments,Capital Works,Capital
Cherwell District Council,02/12/2020,C050230,4595.00,Alan Baxter Integrated Design,Strategy and Commissioning,Strategic Planning Economy,Strategic Planning & the Economy,Other misc payments,Third Party Payments,Revenue
Cherwell District Council,02/12/2020,C050235,3800.00,Alan Baxter Integrated Design,Strategy and Commissioning,Strategic Planning Economy,Strategic Planning & the Economy,Other misc payments,Third Party Payments,Revenue
Cherwell District Council,02/12/2020,C050236,2175.00,Alan Baxter Integrated Design,Strategy and Commissioning,Strategic Planning Economy,Strategic Planning & the Economy,Other misc payments,Third Party Payments,Revenue
Cherwell District Council,02/12/2020,C050253,1491.50,Alderwood Electrical,Commercial Development,Regeneration and Housing,Development,Repair & Maintenance,Premises Related Expenditure,Revenue
Cherwell District Council,18/12/2020,C050305,1900.00,Alderwood Electrical,Operations and Delivery,Community Services,Finance & Procurement,Repair & Maintenance,Premises Related Expenditure,Revenue
Cherwell District Council,09/12/2020,C050472,1907.50,Alderwood Electrical,Commercial Development,Regeneration and Housing,Development,Repair & Maintenance,Premises Related Expenditure,Revenue
Cherwell District Council,16/12/2020,C050640,2100.00,Alderwood Electrical,Commercial Development,Regeneration and Housing,Development,Repair & Maintenance,Premises Related Expenditure,Revenue
Cherwell District Council,30/12/2020,C050761,1125.00,Allen Construction Consultancy,Commercial Development,Regeneration and Housing,Regeneration & Housing,Professional Fees,Third Party Payments,Revenue
Cherwell District Council,02/12/2020,C050103,897.61,AMP Clean Energy,Commercial Development,Regeneration and Housing,Finance & Procurement,Repair & Maintenance,Premises Related Expenditure,Revenue
Cherwell District Council,16/12/2020,C050707,3310.50,AMP Clean Energy,Operations and Delivery,Community Services,Community Services,Repair & Maintenance,Premises Related Expenditure,Revenue
Cherwell District Council,23/12/2020,C050900,3591.00,AMP Clean Energy,Commercial Development,Regeneration and Housing,Development,Repair & Maintenance,Premises Related Expenditure,Revenue
Cherwell District Council,09/12/2020,C050462,41275.97,APCOA Parking (UK) LTD,Operations and Delivery Cap,Capital Community Services,Community Services,Contractors Capital Payments,Capital Works,Capital
Cherwell District Council,23/12/2020,C050922,37059.68,APCOA Parking (UK) LTD,Operations and Delivery,Community Services,Community Services,Management Fees,Third Party Payments,Revenue
Cherwell District Council,23/12/2020,C050922,4913.43,APCOA Parking (UK) LTD,Operations and Delivery,Community Services,Community Services,Management Fees,Third Party Payments,Revenue
Cherwell District Council,07/12/2020,C050451,1999.27,Ardley Boarding Kennels,Operations and Delivery,Environmental Services,Finance & Procurement,Kennel Fees,Supplies and Services,Revenue
Cherwell District Council,04/12/2020,C050377,27224.00,Arncott Parish Council,Operations and Delivery Cap,Capital Community Services,Resources,Contractors Capital Payments,Capital Works,Capital
Cherwell District Council,18/12/2020,C050829,720.00,Arncott Parish Council,Operations and Delivery Cap,Capital Community Services,Resources,Contractors Capital Payments,Capital Works,Capital
Cherwell District Council,02/12/2020,C050250,2111.83,Astrum Commercial Cleaning,Commercial Development,Regeneration and Housing,Development,Contract Cleaning,Premises Related Expenditure,Revenue
Cherwell District Council,02/12/2020,C050251,969.68,Astrum Commercial Cleaning,Commercial Development,Regeneration and Housing,Development,Contract Cleaning,Premises Related Expenditure,Revenue
Cherwell District Council,02/12/2020,C050252,634.91,Astrum Commercial Cleaning,Commercial Development,Regeneration and Housing,Development,Contract Cleaning,Premises Related Expenditure,Revenue
Cherwell District Council,02/12/2020,C050277,1330.91,Astrum Commercial Cleaning,Commercial Development,Regeneration and Housing,Development,Contract Cleaning,Premises Related Expenditure,Revenue
Cherwell District Council,30/12/2020,C050930,887.41,Baker Engineering,Operations and Delivery,Environmental Services,Environmental Services,Repair & Maintenance,Premises Related Expenditure,Revenue
Cherwell District Council,02/12/2020,C050315,89775.00,Banbury Musuem Trust,Operations and Delivery,Community Services,Community Services,Grants Paid Out,Supplies and Services,Revenue
Cherwell District Council,09/12/2020,C050574,89775.00,Banbury Musuem Trust,Operations and Delivery,Community Services,Community Services,Grants Paid Out,Supplies and Services,Revenue
Cherwell District Council,10/12/2020,C050424,1000.00,Banbury United,Operations and Delivery,Community Services,Community Services,Consultants Fees,Third Party Payments,Revenue
Cherwell District Council,09/12/2020,C050468,8208.27,Bandvulc Tyre Contracts,Operations and Delivery,Environmental Services,Environmental Services,Vehicle Repair & Maintenance,Transport Related Expenditure,Revenue
Cherwell District Council,09/12/2020,C050578,2118.00,Barker & Evans Ltd,Commercial Development,Regeneration and Housing,Regeneration & Housing,Repair & Maintenance,Premises Related Expenditure,Revenue
Cherwell District Council,09/12/2020,C050578,2118.00,Barker & Evans Ltd,Commercial Development,Regeneration and Housing,Regeneration & Housing,Repair & Maintenance,Premises Related Expenditure,Revenue
Cherwell District Council,09/12/2020,C050578,2008.00,Barker & Evans Ltd,Commercial Development,Regeneration and Housing,Regeneration & Housing,Repair & Maintenance,Premises Related Expenditure,Revenue
Cherwell District Council,09/12/2020,C050578,2008.00,Barker & Evans Ltd,Commercial Development,Regeneration and Housing,Regeneration & Housing,Repair & Maintenance,Premises Related Expenditure,Revenue
Cherwell District Council,09/12/2020,C050542,2270.00,Bartech Auto ID,Operations and Delivery,Environmental Services,Environmental Services,Vehicle Repair & Maintenance,Transport Related Expenditure,Revenue
Cherwell District Council,30/12/2020,C051073,31500.00,Berks Bucks & Oxon Wildlife Trust,Commercial Development,Bicester Regeneration Projects,Finance & Procurement,Grants Paid Out,Supplies and Services,Revenue
Cherwell District Council,21/12/2020,C050415,1581.40,Bevan Brittan,Commercial Development,Human Resources,Transformation,Legal Expenses,Supplies and Services,Revenue
Cherwell District Council,07/12/2020,C050382,4023.26,Bicester Christian Action Limited,Operations and Delivery Cap,Capital Community Services,Resources,Grants paid,Capital Works,Capital
Cherwell District Council,18/12/2020,C050787,5388.75,Bicester Christian Action Limited,Operations and Delivery Cap,Capital Community Services,Resources,Grants paid,Capital Works,Capital
Cherwell District Council,09/12/2020,C050512,709.80,Bicester Green,Operations and Delivery,Community Services,Community Services,Other misc payments,Third Party Payments,Revenue
Cherwell District Council,21/12/2020,C050397,2250.00,Bidwell Webber De-Pons,Commercial Development,Regeneration and Housing,Finance & Procurement,Professional Fees,Third Party Payments,Revenue
Cherwell District Council,21/12/2020,C050398,1500.00,Bidwell Webber De-Pons,Commercial Development,Regeneration and Housing,Finance & Procurement,Professional Fees,Third Party Payments,Revenue
Cherwell District Council,02/12/2020,C050340,2000.00,Bloom Procurement Services Ltd,Chief Finance Officer Capital,Capital Finance and Procuremen,Finance & Procurement,Other Prof.Fees (Capital),Professional Fees,Capital
Cherwell District Council,02/12/2020,C050341,3000.00,Bloom Procurement Services Ltd,Commercial Development,Regeneration and Housing,Finance & Procurement,Professional Fees,Third Party Payments,Revenue
Cherwell District Council,02/12/2020,C050342,9350.00,Bloom Procurement Services Ltd,Chief Finance Officer Capital,Capital Finance and Procuremen,Finance & Procurement,Other Prof.Fees (Capital),Professional Fees,Capital
Cherwell District Council,04/12/2020,C050350,6000.00,Bloom Procurement Services Ltd,Chief Finance Officer Capital,Capital Finance and Procuremen,Finance & Procurement,Other Prof.Fees (Capital),Professional Fees,Capital
Cherwell District Council,04/12/2020,C050351,1140.00,Bloom Procurement Services Ltd,Chief Finance Officer Capital,Capital Finance and Procuremen,Finance & Procurement,Other Prof.Fees (Capital),Professional Fees,Capital
Cherwell District Council,16/12/2020,C050752,5000.00,Bloom Procurement Services Ltd,Chief Finance Officer Capital,Capital Finance and Procuremen,Finance & Procurement,Other Prof.Fees (Capital),Professional Fees,Capital
Cherwell District Council,23/12/2020,C050943,937.42,Brenntag UK Ltd,Operations and Delivery,Environmental Services,Environmental Services,Fuel & Oil,Transport Related Expenditure,Revenue
Cherwell District Council,23/12/2020,C050944,879.71,Brenntag UK Ltd,Operations and Delivery,Environmental Services,Environmental Services,Fuel & Oil,Transport Related Expenditure,Revenue
Cherwell District Council,18/12/2020,C050654,2166.90,BRG Interim Solutions Ltd,Strategy and Commissioning,Development Management,Finance & Procurement,Agency Staff,Employees,Revenue
Cherwell District Council,16/12/2020,C050728,2026.65,BRG Interim Solutions Ltd,Strategy and Commissioning,Development Management,Finance & Procurement,Agency Staff,Employees,Revenue
Cherwell District Council,16/12/2020,C050760,2104.20,BRG Interim Solutions Ltd,Strategy and Commissioning,Development Management,Finance & Procurement,Agency Staff,Employees,Revenue
Cherwell District Council,23/12/2020,C050873,1972.65,BRG Interim Solutions Ltd,Strategy and Commissioning,Development Management,Finance & Procurement,Agency Staff,Employees,Revenue
Cherwell District Council,30/12/2020,C051086,2117.35,BRG Interim Solutions Ltd,Strategy and Commissioning,Development Management,Finance & Procurement,Agency Staff,Employees,Revenue
Cherwell District Council,09/12/2020,C050489,2080.00,Brian Currie (Milton Keynes) Ltd,Operations and Delivery,Environmental Services,Environmental Services,Vehicle Repair & Maintenance,Transport Related Expenditure,Revenue
Cherwell District Council,04/12/2020,C050355,3000.00,Broomfield Property Consultants Ltd,Commercial Development,Regeneration and Housing,Finance & Procurement,Consultants Fees,Third Party Payments,Revenue
Cherwell District Council,16/12/2020,C050592,3000.00,Broomfield Property Consultants Ltd,Commercial Development,Regeneration and Housing,Finance & Procurement,Consultants Fees,Third Party Payments,Revenue
Cherwell District Council,16/12/2020,C050772,3121.50,Broomfield Property Consultants Ltd,Commercial Development,Regeneration and Housing,Finance & Procurement,Consultants Fees,Third Party Payments,Revenue
Cherwell District Council,23/12/2020,C051003,3140.00,Broomfield Property Consultants Ltd,Commercial Development,Regeneration and Housing,Finance & Procurement,Consultants Fees,Third Party Payments,Revenue
Cherwell District Council,16/12/2020,C050656,51398.45,BS Pension Fund Trustee Ltd,Funding,Funding,Regeneration & Housing,Interest paid,Capital Financing Costs,Revenue
Cherwell District Council,18/12/2020,C050381,1577.40,Bucks Plant Care Limited,Operations and Delivery,Environmental Services,Finance & Procurement,Consultants Fees,Third Party Payments,Revenue
Cherwell District Council,09/12/2020,C050459,3750.00,Campbell Reith Consulting,Chief Finance Officer Capital,Capital Finance and Procuremen,Finance & Procurement,Other Prof.Fees (Capital),Professional Fees,Capital
Cherwell District Council,21/12/2020,C050615,2487.45,Canon (Uk) Ltd,Commercial Development,Information Services,ICT,Printing & Photocopying - MFD,Supplies and Services,Revenue
Cherwell District Council,30/12/2020,C051017,3668.03,Canon (Uk) Ltd,Commercial Development,Information Services,ICT,Hire Rental Leasing of Equipment,Supplies and Services,Revenue
Cherwell District Council,23/12/2020,C050938,1559.98,Carbody (Banbury) Limited,Operations and Delivery,Environmental Services,Finance & Procurement,Insurance expenses,Supplies and Services,Revenue
Cherwell District Council,30/12/2020,C050782,474.48,Castle Water,Commercial Development,Regeneration and Housing,Development,Water Charges (Metered),Premises Related Expenditure,Revenue
Cherwell District Council,30/12/2020,C050782,55.31,Castle Water,Commercial Development,Regeneration and Housing,Development,Water Charges (Metered),Premises Related Expenditure,Revenue
Cherwell District Council,09/12/2020,C050411,4437.30,Champion Employment,Commercial Development,Human Resources,Transformation,Agency Staff,Employees,Revenue
Cherwell District Council,09/12/2020,C050411,27.00,Champion Employment,Commercial Development,Regeneration and Housing,Transformation,Agency Staff,Employees,Revenue
Cherwell District Council,09/12/2020,C050411,3460.35,Champion Employment,Commercial Development,Regeneration and Housing,Transformation,Agency Staff,Employees,Revenue
Cherwell District Council,09/12/2020,C050411,8335.74,Champion Employment,Operations and Delivery,Community Services,Transformation,Agency Staff,Employees,Revenue
Cherwell District Council,09/12/2020,C050411,6212.11,Champion Employment,Operations and Delivery,Environmental Services,Transformation,Agency Staff,Employees,Revenue
Cherwell District Council,09/12/2020,C050411,73.39,Champion Employment,Strategy and Commissioning,Law and Governance,Transformation,Agency Staff,Employees,Revenue
Cherwell District Council,04/12/2020,C050374,500.00,Cherwell Larder,Strategy and Commissioning,Business Support Unit,Resources,Grants Paid Out,Supplies and Services,Revenue
Cherwell District Council,30/12/2020,C051093,1200.00,Cherwell Larder,Strategy and Commissioning,Business Support Unit,Resources,Grants Paid Out,Supplies and Services,Revenue
Cherwell District Council,23/12/2020,C050914,2000.00,Cherwell Mobility Ltd,Commercial Development Capital,Capital Regen and Housing,Regeneration & Housing,Contractors Capital Payments,Capital Works,Capital
Cherwell District Council,23/12/2020,C050992,5433.00,Cherwell Mobility Ltd,Commercial Development Capital,Capital Regen and Housing,Regeneration & Housing,Contractors Capital Payments,Capital Works,Capital
Cherwell District Council,09/12/2020,C050569,1157.35,Chubb Fire and Security Ltd,Commercial Development,Regeneration and Housing,Regeneration & Housing,Repair & Maintenance,Premises Related Expenditure,Revenue
Cherwell District Council,16/12/2020,C050603,11000.00,Citizens Advice North Oxfordshire & South Northamp,Strategy and Commissioning,Business Support Unit,Community Services,Grants Paid Out,Supplies and Services,Revenue
Cherwell District Council,21/12/2020,C050871,11000.00,Citizens Advice North Oxfordshire & South Northamp,Strategy and Commissioning,Business Support Unit,Community Services,Grants Paid Out,Supplies and Services,Revenue
Cherwell District Council,21/12/2020,C050856,1159.93,Civica,Commercial Development,Regeneration and Housing,Regeneration & Housing,"Computer Software, Licensing & Maintenan",Supplies and Services,Revenue
Cherwell District Council,07/12/2020,C050383,759.39,Community First Oxfordshire,Strategy and Commissioning,Business Support Unit,Resources,Grants Paid Out,Supplies and Services,Revenue
Cherwell District Council,16/12/2020,C050777,8750.00,Community First Oxfordshire,Operations and Delivery,Community Services,Community Services,Contribution,Supplies and Services,Revenue
Cherwell District Council,16/12/2020,C050777,5000.00,Community First Oxfordshire,Operations and Delivery,Community Services,Community Services,Contribution,Supplies and Services,Revenue
Cherwell District Council,30/12/2020,C050961,1132.00,Computerised & Digital Security Systems Ltd,Operations and Delivery,Community Services,Finance & Procurement,Repair & Maintenance of Plant & Equipmen,Supplies and Services,Revenue
Cherwell District Council,07/12/2020,C050384,25000.00,Connections,Commercial Development,Regeneration and Housing,Regeneration & Housing,Grants Paid Out,Supplies and Services,Revenue
Cherwell District Council,18/12/2020,C050387,11250.00,Connections,Commercial Development,Regeneration and Housing,Regeneration & Housing,Grants Paid Out,Supplies and Services,Revenue
Cherwell District Council,16/12/2020,C050388,10000.00,Connections,Commercial Development,Regeneration and Housing,Regeneration & Housing,Grants Paid Out,Supplies and Services,Revenue
Cherwell District Council,16/12/2020,C050388,10000.00,Connections,Commercial Development,Regeneration and Housing,Regeneration & Housing,Grants Paid Out,Supplies and Services,Revenue
Cherwell District Council,16/12/2020,C050388,15000.00,Connections,Commercial Development,Regeneration and Housing,Regeneration & Housing,Grants Paid Out,Supplies and Services,Revenue
Cherwell District Council,09/12/2020,C050389,9584.77,Connections,Commercial Development,Regeneration and Housing,Regeneration & Housing,Grants Paid Out,Supplies and Services,Revenue
Cherwell District Council,09/12/2020,C050390,9584.77,Connections,Commercial Development,Regeneration and Housing,Regeneration & Housing,Grants Paid Out,Supplies and Services,Revenue
Cherwell District Council,18/12/2020,C050391,9584.77,Connections,Commercial Development,Regeneration and Housing,Regeneration & Housing,Grants Paid Out,Supplies and Services,Revenue
Cherwell District Council,21/12/2020,C050392,9849.00,Connections,Commercial Development,Regeneration and Housing,Regeneration & Housing,Grants Paid Out,Supplies and Services,Revenue
Cherwell District Council,21/12/2020,C050393,6947.85,Connections,Commercial Development,Regeneration and Housing,Regeneration & Housing,Grants Paid Out,Supplies and Services,Revenue
Cherwell District Council,18/12/2020,C050400,12500.00,Connections,Commercial Development,Regeneration and Housing,Regeneration & Housing,Grants Paid Out,Supplies and Services,Revenue
Cherwell District Council,21/12/2020,C050401,22500.00,Connections,Commercial Development,Regeneration and Housing,Regeneration & Housing,Grants Paid Out,Supplies and Services,Revenue
Cherwell District Council,02/12/2020,C050268,91300.42,Continental Landscapes Ltd,Operations and Delivery,Environmental Services,Finance & Procurement,Landscape Maintenance,Premises Related Expenditure,Revenue
Cherwell District Council,21/12/2020,C050855,910.00,CoolerAid Ltd,Commercial Development,Regeneration and Housing,Finance & Procurement,Repair & Maintenance,Premises Related Expenditure,Revenue
Cherwell District Council,02/12/2020,C049605,250.00,Cordell Health Ltd,Commercial Development,Human Resources,Transformation,Medical Fees,Employees,Revenue
Cherwell District Council,02/12/2020,C049605,80.00,Cordell Health Ltd,Commercial Development,Regeneration and Housing,Transformation,Medical Fees,Employees,Revenue
Cherwell District Council,02/12/2020,C049605,80.00,Cordell Health Ltd,Operations and Delivery,Community Services,Transformation,Medical Fees,Employees,Revenue
Cherwell District Council,02/12/2020,C049605,80.00,Cordell Health Ltd,Operations and Delivery,Community Services,Transformation,Medical Fees,Employees,Revenue
Cherwell District Council,02/12/2020,C049605,330.00,Cordell Health Ltd,Operations and Delivery,Community Services,Transformation,Medical Fees,Employees,Revenue
Cherwell District Council,02/12/2020,C049605,10.00,Cordell Health Ltd,Operations and Delivery,Community Services,Transformation,Medical Fees,Employees,Revenue
Cherwell District Council,02/12/2020,C049605,10.00,Cordell Health Ltd,Operations and Delivery,Community Services,Transformation,Medical Fees,Employees,Revenue
Cherwell District Council,02/12/2020,C049605,100.00,Cordell Health Ltd,Operations and Delivery,Environmental Services,Transformation,Medical Fees,Employees,Revenue
Cherwell District Council,02/12/2020,C049605,760.00,Cordell Health Ltd,Operations and Delivery,Environmental Services,Transformation,Medical Fees,Employees,Revenue
Cherwell District Council,02/12/2020,C049605,80.00,Cordell Health Ltd,Operations and Delivery,Environmental Services,Transformation,Medical Fees,Employees,Revenue
Cherwell District Council,02/12/2020,C049605,200.00,Cordell Health Ltd,Operations and Delivery,Environmental Services,Transformation,Medical Fees,Employees,Revenue
Cherwell District Council,21/12/2020,C050425,250.00,Cordell Health Ltd,Chief Finance Officer,Finance and Procurement,Transformation,Medical Fees,Employees,Revenue
Cherwell District Council,21/12/2020,C050425,280.00,Cordell Health Ltd,Chief Finance Officer,Finance and Procurement,Transformation,Medical Fees,Employees,Revenue
Cherwell District Council,21/12/2020,C050425,100.00,Cordell Health Ltd,Commercial Development,Human Resources,Transformation,Medical Fees,Employees,Revenue
Cherwell District Council,21/12/2020,C050425,10.00,Cordell Health Ltd,Commercial Development,Information Services,Transformation,Medical Fees,Employees,Revenue
Cherwell District Council,21/12/2020,C050425,250.00,Cordell Health Ltd,Commercial Development,Regeneration and Housing,Transformation,Medical Fees,Employees,Revenue
Cherwell District Council,21/12/2020,C050425,10.00,Cordell Health Ltd,Commercial Development,Regeneration and Housing,Transformation,Medical Fees,Employees,Revenue
Cherwell District Council,21/12/2020,C050425,10.00,Cordell Health Ltd,Operations and Delivery,Community Services,Transformation,Medical Fees,Employees,Revenue
Cherwell District Council,21/12/2020,C050425,80.00,Cordell Health Ltd,Operations and Delivery,Community Services,Transformation,Medical Fees,Employees,Revenue
Cherwell District Council,21/12/2020,C050425,200.00,Cordell Health Ltd,Operations and Delivery,Community Services,Transformation,Medical Fees,Employees,Revenue
Cherwell District Council,21/12/2020,C050425,50.00,Cordell Health Ltd,Operations and Delivery,Community Services,Transformation,Medical Fees,Employees,Revenue
Cherwell District Council,21/12/2020,C050425,200.00,Cordell Health Ltd,Operations and Delivery,Environmental Services,Transformation,Medical Fees,Employees,Revenue
Cherwell District Council,21/12/2020,C050425,810.00,Cordell Health Ltd,Operations and Delivery,Environmental Services,Transformation,Medical Fees,Employees,Revenue
Cherwell District Council,21/12/2020,C050425,10.00,Cordell Health Ltd,Strategy and Commissioning,Development Management,Transformation,Medical Fees,Employees,Revenue
Cherwell District Council,21/12/2020,C050878,1177.40,Cotswold Lifts Ltd,Commercial Development,Regeneration and Housing,Development,Repair & Maintenance,Premises Related Expenditure,Revenue
Cherwell District Council,07/12/2020,C050443,1352.00,County Private Client Ltd,Commercial Development,Regeneration and Housing,Regeneration & Housing,B&B charges,Supplies and Services,Revenue
Cherwell District Council,09/12/2020,C050442,10500.00,Craemer Uk Ltd,Current Assets,Inventories,Finance & Procurement,Stores Purchases,Payments Made,Balance Sheet
Cherwell District Council,18/12/2020,C050703,10500.00,Craemer Uk Ltd,Current Assets,Inventories,Finance & Procurement,Stores Purchases,Payments Made,Balance Sheet
Cherwell District Council,23/12/2020,C050950,5250.00,Craemer Uk Ltd,Current Assets,Inventories,Finance & Procurement,Stores Purchases,Payments Made,Balance Sheet
Cherwell District Council,30/12/2020,C051005,5100.00,Craemer Uk Ltd,Current Assets,Inventories,Finance & Procurement,Stores Purchases,Payments Made,Balance Sheet
Cherwell District Council,30/12/2020,C051006,5250.00,Craemer Uk Ltd,Current Assets,Inventories,Finance & Procurement,Stores Purchases,Payments Made,Balance Sheet
Cherwell District Council,30/12/2020,C051046,1686.44,Crown Hosting Data Centres Ltd,Commercial Development,Information Services,ICT,Computer Hardware Expenses,Supplies and Services,Revenue
Cherwell District Council,02/12/2020,C050244,2000.00,Cumming Anderton,Commercial Development Capital,Capital Regen and Housing,Regeneration & Housing,Other Prof.Fees (Capital),Professional Fees,Capital
Cherwell District Council,02/12/2020,C050302,1258.20,Days Rental,Operations and Delivery,Environmental Services,Environmental Services,Vehicle Hire Expenses,Transport Related Expenditure,Revenue
Cherwell District Council,02/12/2020,C050303,598.50,Days Rental,Operations and Delivery,Environmental Services,Environmental Services,Short Term Vehicle Hire,Transport Related Expenditure,Revenue
Cherwell District Council,02/12/2020,C050284,1065.04,Dennis Eagle,Operations and Delivery,Environmental Services,Environmental Services,Vehicle Repair & Maintenance,Transport Related Expenditure,Revenue
Cherwell District Council,02/12/2020,C050316,684.88,Dennis Eagle,Operations and Delivery,Environmental Services,Environmental Services,Vehicle Repair & Maintenance,Transport Related Expenditure,Revenue
Cherwell District Council,04/12/2020,C050346,181035.00,Dennis Eagle,Operations and Delivery Cap,Capital Environmental Services,Finance & Procurement,Contractors Capital Payments,Capital Works,Capital
Cherwell District Council,04/12/2020,C050347,181035.00,Dennis Eagle,Operations and Delivery Cap,Capital Environmental Services,Finance & Procurement,Contractors Capital Payments,Capital Works,Capital
Cherwell District Council,04/12/2020,C050348,181035.00,Dennis Eagle,Operations and Delivery Cap,Capital Environmental Services,Finance & Procurement,Contractors Capital Payments,Capital Works,Capital
Cherwell District Council,09/12/2020,C050499,626.76,Dennis Eagle,Operations and Delivery,Environmental Services,Environmental Services,Vehicle Repair & Maintenance,Transport Related Expenditure,Revenue
Cherwell District Council,16/12/2020,C050729,932.00,Dennis Eagle,Operations and Delivery,Environmental Services,Environmental Services,Vehicle Repair & Maintenance,Transport Related Expenditure,Revenue
Cherwell District Council,16/12/2020,C050757,861.64,Dennis Eagle,Operations and Delivery,Environmental Services,Environmental Services,Vehicle Repair & Maintenance,Transport Related Expenditure,Revenue
Cherwell District Council,23/12/2020,C050966,726.85,Dennis Eagle,Operations and Delivery,Environmental Services,Environmental Services,Vehicle Repair & Maintenance,Transport Related Expenditure,Revenue
Cherwell District Council,30/12/2020,C051004,1080.00,Dennis Eagle,Operations and Delivery,Environmental Services,Finance & Procurement,Vehicle Repair & Maintenance,Transport Related Expenditure,Revenue
Cherwell District Council,30/12/2020,C051079,1130.21,Dennis Eagle,Operations and Delivery,Environmental Services,Environmental Services,Vehicle Repair & Maintenance,Transport Related Expenditure,Revenue
Cherwell District Council,09/12/2020,C050536,1156.29,Dial a Bin RCS,Operations and Delivery,Environmental Services,Environmental Services,Recycling Gate Fees,Third Party Payments,Revenue
Cherwell District Council,16/12/2020,C050764,2625.00,Diales,Commercial Development Capital,Capital Regen and Housing,Finance & Procurement,Contractors Capital Payments,Capital Works,Capital
Cherwell District Council,21/12/2020,C050887,1230.00,Diales,Commercial Development Capital,Capital Regen and Housing,Finance & Procurement,Contractors Capital Payments,Capital Works,Capital
Cherwell District Council,23/12/2020,C050919,777.16,Digraph Transport Supplies Ltd,Operations and Delivery,Environmental Services,Environmental Services,Equipment General,Supplies and Services,Revenue
Cherwell District Council,09/12/2020,C050497,2000.00,Edd Frost & Daughters Family Funeral Directors,Operations and Delivery,Community Services,Finance & Procurement,Burial of Dead,Supplies and Services,Revenue
Cherwell District Council,09/12/2020,C050482,126021.48,Edgar Taylor (Buckingham) Ltd,Commercial Development Capital,Capital Regen and Housing,Regeneration & Housing,Contractors Capital Payments,Capital Works,Capital
Cherwell District Council,09/12/2020,C050502,1698.00,Edgar Taylor (Buckingham) Ltd,Commercial Development,Regeneration and Housing,Regeneration & Housing,Repair & Maintenance,Premises Related Expenditure,Revenue
Cherwell District Council,18/12/2020,C050597,905.30,Edgar Taylor (Buckingham) Ltd,Commercial Development Capital,Capital Regen and Housing,Regeneration & Housing,Contractors Capital Payments,Capital Works,Capital
Cherwell District Council,30/12/2020,C051091,54361.52,Edgar Taylor (Buckingham) Ltd,Commercial Development Capital,Capital Regen and Housing,Regeneration & Housing,Contractors Capital Payments,Capital Works,Capital
Cherwell District Council,21/12/2020,C050879,6000.00,Engie Regeneration Ltd,Operations and Delivery Cap,Capital Community Services,Regeneration & Housing,Contractors Capital Payments,Capital Works,Capital
Cherwell District Council,21/12/2020,C050880,7000.00,Engie Regeneration Ltd,Operations and Delivery Cap,Capital Community Services,Regeneration & Housing,Contractors Capital Payments,Capital Works,Capital
Cherwell District Council,21/12/2020,C050886,2000.00,Engineers-HRW,Commercial Development Capital,Capital Regen and Housing,Regeneration & Housing,Other Prof.Fees (Capital),Professional Fees,Capital
Cherwell District Council,18/12/2020,C050647,11400.00,Entec Si Ltd,Chief Finance Officer Capital,Capital Finance and Procuremen,Finance & Procurement,Contractors Capital Payments,Capital Works,Capital
Cherwell District Council,18/12/2020,C050648,1400.00,Entec Si Ltd,Commercial Development,Information Services,Finance & Procurement,Consultants Fees,Third Party Payments,Revenue
Cherwell District Council,18/12/2020,C050649,1400.00,Entec Si Ltd,,,Finance & Procurement,Contractors Capital Payments,Capital Works,
Cherwell District Council,18/12/2020,C050650,1487.50,Entec Si Ltd,Commercial Development Capital,Capital ICT,Finance & Procurement,Contractors Capital Payments,Capital Works,Capital
Cherwell District Council,16/12/2020,C050651,10250.00,Entec Si Ltd,Commercial Development Capital,Capital ICT,Finance & Procurement,Contractors Capital Payments,Capital Works,Capital
Cherwell District Council,16/12/2020,C050651,2887.50,Entec Si Ltd,Commercial Development Capital,Capital ICT,Finance & Procurement,Contractors Capital Payments,Capital Works,Capital
Cherwell District Council,18/12/2020,C050652,1837.50,Entec Si Ltd,,,Finance & Procurement,Contractors Capital Payments,Capital Works,
Cherwell District Council,18/12/2020,C050652,1500.00,Entec Si Ltd,,,Finance & Procurement,Contractors Capital Payments,Capital Works,
Cherwell District Council,18/12/2020,C050652,1700.00,Entec Si Ltd,,,Finance & Procurement,Contractors Capital Payments,Capital Works,
Cherwell District Council,18/12/2020,C050652,2325.00,Entec Si Ltd,,,Finance & Procurement,Contractors Capital Payments,Capital Works,
Cherwell District Council,18/12/2020,C050652,1550.00,Entec Si Ltd,,,Finance & Procurement,Contractors Capital Payments,Capital Works,
Cherwell District Council,18/12/2020,C050652,12000.00,Entec Si Ltd,,,Finance & Procurement,Contractors Capital Payments,Capital Works,
Cherwell District Council,18/12/2020,C050784,43382.45,Field & Lawn (Marquees) Ltd,Operations and Delivery,Environmental Services,Environmental Services,Contractor Ad Hoc Payments,Third Party Payments,Revenue
Cherwell District Council,21/12/2020,C050785,2175.00,Field & Lawn (Marquees) Ltd,Operations and Delivery,Environmental Services,Environmental Services,Contractor Ad Hoc Payments,Third Party Payments,Revenue
Cherwell District Council,30/12/2020,C051035,9614.46,Field & Lawn (Marquees) Ltd,Operations and Delivery,Environmental Services,Environmental Services,Contractor Ad Hoc Payments,Third Party Payments,Revenue
Cherwell District Council,23/12/2020,C051009,527.37,Financial Data Management,Strategy and Commissioning,Law and Governance,Law & Governance,External Print & Design Work,Supplies and Services,Revenue
Cherwell District Council,23/12/2020,C051009,459.50,Financial Data Management,Strategy and Commissioning,Law and Governance,Law & Governance,External Print & Design Work,Supplies and Services,Revenue
Cherwell District Council,02/12/2020,C050212,864.00,Freechoice Property Services Ltd,Commercial Development Capital,Capital Regen and Housing,Regeneration & Housing,Contractors Capital Payments,Capital Works,Capital
Cherwell District Council,02/12/2020,C050216,1820.00,Freechoice Property Services Ltd,Commercial Development Capital,Capital Regen and Housing,Regeneration & Housing,Contractors Capital Payments,Capital Works,Capital
Cherwell District Council,07/12/2020,C050405,1416.00,Freechoice Property Services Ltd,Commercial Development Capital,Capital Regen and Housing,Regeneration & Housing,Contractors Capital Payments,Capital Works,Capital
Cherwell District Council,23/12/2020,C050610,700.00,Freechoice Property Services Ltd,Commercial Development Capital,Capital Regen and Housing,Regeneration & Housing,Contractors Capital Payments,Capital Works,Capital
Cherwell District Council,23/12/2020,C050611,700.00,Freechoice Property Services Ltd,Commercial Development Capital,Capital Regen and Housing,Regeneration & Housing,Contractors Capital Payments,Capital Works,Capital
Cherwell District Council,23/12/2020,C050612,4150.00,Freechoice Property Services Ltd,Commercial Development Capital,Capital Regen and Housing,Regeneration & Housing,Contractors Capital Payments,Capital Works,Capital
Cherwell District Council,23/12/2020,C050915,6852.00,Freechoice Property Services Ltd,Commercial Development Capital,Capital Regen and Housing,Regeneration & Housing,Contractors Capital Payments,Capital Works,Capital
Cherwell District Council,23/12/2020,C050964,9801.91,Freechoice Property Services Ltd,Commercial Development Capital,Capital Regen and Housing,Regeneration & Housing,Contractors Capital Payments,Capital Works,Capital
Cherwell District Council,23/12/2020,C050991,600.00,Freechoice Property Services Ltd,Commercial Development Capital,Capital Regen and Housing,Regeneration & Housing,Contractors Capital Payments,Capital Works,Capital
Cherwell District Council,30/12/2020,C051019,2650.00,Freechoice Property Services Ltd,Commercial Development Capital,Capital Regen and Housing,Regeneration & Housing,Contractors Capital Payments,Capital Works,Capital
Cherwell District Council,30/12/2020,C051020,1500.00,Freechoice Property Services Ltd,Commercial Development,Regeneration and Housing,Regeneration & Housing,Consultants Fees,Third Party Payments,Revenue
Cherwell District Council,30/12/2020,C051021,10000.00,Freechoice Property Services Ltd,Commercial Development Capital,Capital Regen and Housing,Regeneration & Housing,Contractors Capital Payments,Capital Works,Capital
Cherwell District Council,04/12/2020,C050357,629.50,Freeths Llp,Commercial Development,Regeneration and Housing,Finance & Procurement,Professional Fees,Third Party Payments,Revenue
Cherwell District Council,21/12/2020,C050904,1483.50,Freeths Llp,Commercial Development,Regeneration and Housing,Finance & Procurement,Consultants Fees,Third Party Payments,Revenue
Cherwell District Council,23/12/2020,C050971,1127.00,Freeths Llp,Commercial Development,Regeneration and Housing,Finance & Procurement,Professional Fees,Third Party Payments,Revenue
Cherwell District Council,23/12/2020,C050972,689.50,Freeths Llp,Commercial Development,Regeneration and Housing,Finance & Procurement,Professional Fees,Third Party Payments,Revenue
Cherwell District Council,23/12/2020,C050994,500.00,Freeths Llp,Commercial Development,Regeneration and Housing,Finance & Procurement,Professional Fees,Third Party Payments,Revenue
Cherwell District Council,23/12/2020,C050995,718.56,Freeths Llp,Commercial Development,Regeneration and Housing,Finance & Procurement,Professional Fees,Third Party Payments,Revenue
Cherwell District Council,02/12/2020,C050312,2502.65,Frenco Service Replacements Ltd,Operations and Delivery,Environmental Services,Environmental Services,Vehicle Repair & Maintenance,Transport Related Expenditure,Revenue
Cherwell District Council,18/12/2020,C050779,2140.37,Frenco Service Replacements Ltd,Operations and Delivery,Environmental Services,Environmental Services,Vehicle Repair & Maintenance,Transport Related Expenditure,Revenue
Cherwell District Council,18/12/2020,C050779,95.85,Frenco Service Replacements Ltd,Operations and Delivery,Environmental Services,Environmental Services,Equipment General,Supplies and Services,Revenue
Cherwell District Council,16/12/2020,C050741,15657.00,G G Glass and Glazing,Commercial Development,Regeneration and Housing,Finance & Procurement,Repair & Maintenance,Premises Related Expenditure,Revenue
Cherwell District Council,16/12/2020,C050741,3600.00,G G Glass and Glazing,Commercial Development,Regeneration and Housing,Finance & Procurement,Repair & Maintenance,Premises Related Expenditure,Revenue
Cherwell District Council,23/12/2020,C050955,1312.80,G Richardson Windows Ltd,Commercial Development Capital,Capital Regen and Housing,Regeneration & Housing,Contractors Capital Payments,Capital Works,Capital
Cherwell District Council,04/12/2020,C049979,4626.24,G.A.E. Smith (Holdings) Ltd T/A Casepak,Operations and Delivery,Environmental Services,Environmental Services,Recycling Gate Fees,Third Party Payments,Revenue
Cherwell District Council,21/12/2020,C050587,9202.82,G.A.E. Smith (Holdings) Ltd T/A Casepak,Operations and Delivery,Environmental Services,Environmental Services,Recycling Gate Fees,Third Party Payments,Revenue
Cherwell District Council,16/12/2020,C050588,19588.41,G.A.E. Smith (Holdings) Ltd T/A Casepak,Operations and Delivery,Environmental Services,Environmental Services,Recycling Gate Fees,Third Party Payments,Revenue
Cherwell District Council,21/12/2020,C050589,4109.69,G.A.E. Smith (Holdings) Ltd T/A Casepak,Operations and Delivery,Environmental Services,Environmental Services,Recycling Gate Fees,Third Party Payments,Revenue
Cherwell District Council,18/12/2020,C050590,27124.65,G.A.E. Smith (Holdings) Ltd T/A Casepak,Operations and Delivery,Environmental Services,Environmental Services,Recycling Gate Fees,Third Party Payments,Revenue
Cherwell District Council,04/12/2020,C050258,1221.00,G2 Recruitment Solutions,Operations and Delivery,Community Services,Community Services,Professional Fees,Third Party Payments,Revenue
Cherwell District Council,04/12/2020,C050259,1551.55,G2 Recruitment Solutions,Operations and Delivery,Community Services,Community Services,Professional Fees,Third Party Payments,Revenue
Cherwell District Council,09/12/2020,C050449,1545.25,G2 Recruitment Solutions,Operations and Delivery,Community Services,Community Services,Professional Fees,Third Party Payments,Revenue
Cherwell District Council,09/12/2020,C050450,1221.00,G2 Recruitment Solutions,Operations and Delivery,Community Services,Community Services,Professional Fees,Third Party Payments,Revenue
Cherwell District Council,16/12/2020,C050632,1519.60,G2 Recruitment Solutions,Operations and Delivery,Community Services,Community Services,Professional Fees,Third Party Payments,Revenue
Cherwell District Council,16/12/2020,C050633,1705.20,G2 Recruitment Solutions,Operations and Delivery,Community Services,Community Services,Professional Fees,Third Party Payments,Revenue
Cherwell District Council,30/12/2020,C051085,1511.95,G2 Recruitment Solutions,Operations and Delivery,Community Services,Community Services,Professional Fees,Third Party Payments,Revenue
Cherwell District Council,30/12/2020,C051087,1221.00,G2 Recruitment Solutions,Operations and Delivery,Community Services,Community Services,Professional Fees,Third Party Payments,Revenue
Cherwell District Council,07/12/2020,C050428,12500.00,Gardiner & Theobald,Chief Finance Officer Capital,Capital Finance and Procuremen,Finance & Procurement,Other Prof.Fees (Capital),Professional Fees,Capital
Cherwell District Council,09/12/2020,C050429,20000.00,Gardiner & Theobald,Chief Finance Officer Capital,Capital Finance and Procuremen,Finance & Procurement,Other Prof.Fees (Capital),Professional Fees,Capital
Cherwell District Council,18/12/2020,C050831,207342.52,Gariff Construction Ltd,Chief Finance Officer Capital,Capital Finance and Procuremen,Finance & Procurement,Contractors Capital Payments,Capital Works,Capital
Cherwell District Council,10/12/2020,C050213,873.00,Garrett Electrical Services,Commercial Development Capital,Capital Regen and Housing,Regeneration & Housing,Contractors Capital Payments,Capital Works,Capital
Cherwell District Council,21/12/2020,C050889,724.60,Gosford & Water Eaton Parish Council,Chief Finance Officer,Finance and Procurement,Community Services,Other Fees & Charges,Fees and Charges,Revenue
Cherwell District Council,04/12/2020,C050376,1050.00,Green Dome Trust,Strategy and Commissioning,Business Support Unit,Resources,Grants Paid Out,Supplies and Services,Revenue
Cherwell District Council,30/12/2020,C051080,6546.80,Grundon Waste Management Ltd,Operations and Delivery,Environmental Services,Environmental Services,Recycling Gate Fees,Third Party Payments,Revenue
Cherwell District Council,16/12/2020,C050762,2066.66,GVA Grimley,Chief Finance Officer Capital,Capital Finance and Procuremen,Finance & Procurement,Other Prof.Fees (Capital),Professional Fees,Capital
Cherwell District Council,16/12/2020,C050762,3100.00,GVA Grimley,Commercial Development,Regeneration and Housing,Finance & Procurement,Professional Fees,Third Party Payments,Revenue
Cherwell District Council,02/12/2020,C050321,825.00,Harrison Arboriculture Ltd,Operations and Delivery,Environmental Services,Environmental Services,Consultants Fees,Third Party Payments,Revenue
Cherwell District Council,09/12/2020,C050473,4390.00,Hawkins Projects Ltd,Operations and Delivery,Environmental Services,Development,Contractor Ad Hoc Payments,Third Party Payments,Revenue
Cherwell District Council,18/12/2020,C050474,2400.00,Hawkins Projects Ltd,Commercial Development,Regeneration and Housing,Development,Repair & Maintenance,Premises Related Expenditure,Revenue
Cherwell District Council,09/12/2020,C050475,2200.00,Hawkins Projects Ltd,Chief Finance Officer Capital,Capital Finance and Procuremen,Development,Contractors Capital Payments,Capital Works,Capital
Cherwell District Council,16/12/2020,C050476,2400.00,Hawkins Projects Ltd,Commercial Development,Regeneration and Housing,Development,Repair & Maintenance,Premises Related Expenditure,Revenue
Cherwell District Council,07/12/2020,C050452,1110.00,Hays Specialist Recruitment Ltd,Chief Finance Officer,Finance and Procurement,Finance & Procurement,Agency Staff,Employees,Revenue
Cherwell District Council,07/12/2020,C050453,1020.78,Hays Specialist Recruitment Ltd,Chief Finance Officer,Finance and Procurement,Finance & Procurement,Agency Staff,Employees,Revenue
Cherwell District Council,16/12/2020,C050642,1531.17,Hays Specialist Recruitment Ltd,Chief Finance Officer,Finance and Procurement,Finance & Procurement,Agency Staff,Employees,Revenue
Cherwell District Council,16/12/2020,C050643,1110.00,Hays Specialist Recruitment Ltd,Chief Finance Officer,Finance and Procurement,Finance & Procurement,Agency Staff,Employees,Revenue
Cherwell District Council,18/12/2020,C050655,2025.00,Hays Specialist Recruitment Ltd,Commercial Development,Bicester Regeneration Projects,Finance & Procurement,Consultants Fees,Third Party Payments,Revenue
Cherwell District Council,16/12/2020,C050705,2025.00,Hays Specialist Recruitment Ltd,Commercial Development,Bicester Regeneration Projects,Finance & Procurement,Consultants Fees,Third Party Payments,Revenue
Cherwell District Council,18/12/2020,C050791,1110.00,Hays Specialist Recruitment Ltd,Chief Finance Officer,Finance and Procurement,Finance & Procurement,Agency Staff,Employees,Revenue
Cherwell District Council,21/12/2020,C050896,1110.00,Hays Specialist Recruitment Ltd,Chief Finance Officer,Finance and Procurement,Finance & Procurement,Agency Staff,Employees,Revenue
Cherwell District Council,30/12/2020,C051038,1098.00,Hays Specialist Recruitment Ltd,Chief Finance Officer,Finance and Procurement,Finance & Procurement,Agency Staff,Employees,Revenue
Cherwell District Council,30/12/2020,C051039,2041.56,Hays Specialist Recruitment Ltd,Chief Finance Officer,Finance and Procurement,Finance & Procurement,Agency Staff,Employees,Revenue
Cherwell District Council,30/12/2020,C051040,1786.37,Hays Specialist Recruitment Ltd,Chief Finance Officer,Finance and Procurement,Finance & Procurement,Agency Staff,Employees,Revenue
Cherwell District Council,30/12/2020,C051061,2500.00,Hays Specialist Recruitment Ltd,Strategy and Commissioning,Strategy and Commissioning,Finance & Procurement,Consultants Fees,Third Party Payments,Revenue
Cherwell District Council,30/12/2020,C051062,2500.00,Hays Specialist Recruitment Ltd,Strategy and Commissioning,Strategy and Commissioning,Finance & Procurement,Consultants Fees,Third Party Payments,Revenue
Cherwell District Council,30/12/2020,C051063,2500.00,Hays Specialist Recruitment Ltd,Strategy and Commissioning,Strategy and Commissioning,Finance & Procurement,Consultants Fees,Third Party Payments,Revenue
Cherwell District Council,30/12/2020,C051068,2025.00,Hays Specialist Recruitment Ltd,Commercial Development,Bicester Regeneration Projects,Finance & Procurement,Consultants Fees,Third Party Payments,Revenue
Cherwell District Council,30/12/2020,C051069,2025.00,Hays Specialist Recruitment Ltd,Commercial Development,Bicester Regeneration Projects,Finance & Procurement,Consultants Fees,Third Party Payments,Revenue
Cherwell District Council,23/12/2020,C050941,1281.39,Heathrow Truck Centre Ltd,Operations and Delivery,Environmental Services,Environmental Services,Vehicle Repair & Maintenance,Transport Related Expenditure,Revenue
Cherwell District Council,23/12/2020,C050912,67500.00,Heyford Regeneration Ltd,Commercial Development Capital,Capital Regen and Housing,Regeneration & Housing,Grants paid,Capital Works,Capital
Cherwell District Council,09/12/2020,C050517,14157.00,High Speed Office Ltd,Commercial Development,Information Services,ICT,"Computer Software, Licensing & Maintenan",Supplies and Services,Revenue
Cherwell District Council,21/12/2020,C050780,1517.00,ICW Insurance Services,Commercial Development,Regeneration and Housing,Regeneration & Housing,Professional Fees,Third Party Payments,Revenue
Cherwell District Council,21/12/2020,C050780,690.00,ICW Insurance Services,Commercial Development,Regeneration and Housing,Regeneration & Housing,Professional Fees,Third Party Payments,Revenue
Cherwell District Council,09/12/2020,C050178,7500.00,Iken Business Ltd,,,Finance & Procurement,Contractors Capital Payments,Capital Works,
Cherwell District Council,16/12/2020,C050636,1053.00,In2Solutions Ltd,Commercial Development,Human Resources,Transformation,CPD Training,Employees,Revenue
Cherwell District Council,09/12/2020,C050460,4800.00,InPhase Ltd,Strategy and Commissioning,Performance,Finance & Procurement,"Computer Software, Licensing & Maintenan",Supplies and Services,Revenue
Cherwell District Council,09/12/2020,C050498,3675.00,Inside Out Developments Ltd,Commercial Development,Regeneration and Housing,Development,Repair & Maintenance,Premises Related Expenditure,Revenue
Cherwell District Council,09/12/2020,C050507,2300.00,Inside Out Developments Ltd,Commercial Development,Regeneration and Housing,Development,Repair & Maintenance,Premises Related Expenditure,Revenue
Cherwell District Council,02/12/2020,C050048,7698.25,Insight Ltd,Commercial Development,Human Resources,Finance & Procurement,"Computer Software, Licensing & Maintenan",Supplies and Services,Revenue
Cherwell District Council,02/12/2020,C050198,585.00,ISIS Rescue (Banbury),Operations and Delivery,Environmental Services,Environmental Services,Vehicle Repair & Maintenance,Transport Related Expenditure,Revenue
Cherwell District Council,30/12/2020,C050862,1245.00,IWM Business Services Limited,Operations and Delivery,Environmental Services,Environmental Services,Subscriptions,Supplies and Services,Revenue
Cherwell District Council,30/12/2020,C050949,684.00,J Briggs Removals & Storage Ltd,Commercial Development Capital,Capital Regen and Housing,Regeneration & Housing,Contractors Capital Payments,Capital Works,Capital
Cherwell District Council,07/12/2020,C050396,3508.55,Jackson Criss,Commercial Development,Regeneration and Housing,Finance & Procurement,Professional Fees,Third Party Payments,Revenue
Cherwell District Council,23/12/2020,C051012,1500.00,Jackson Criss,Commercial Development,Regeneration and Housing,Finance & Procurement,Professional Fees,Third Party Payments,Revenue
Cherwell District Council,23/12/2020,C051013,1500.00,Jackson Criss,Commercial Development,Regeneration and Housing,Finance & Procurement,Professional Fees,Third Party Payments,Revenue
Cherwell District Council,16/12/2020,C050416,88.00,Jade Security Services Ltd,Operations and Delivery,Community Services,Finance & Procurement,Contractor Revenue Payments,Third Party Payments,Revenue
Cherwell District Council,16/12/2020,C050416,705.61,Jade Security Services Ltd,Operations and Delivery,Environmental Services,Finance & Procurement,Contractor Revenue Payments,Third Party Payments,Revenue
Cherwell District Council,07/12/2020,C050395,2650.00,Jeremy Gardner Associates,Commercial Development,Regeneration and Housing,Finance & Procurement,Professional Fees,Third Party Payments,Revenue
Cherwell District Council,21/12/2020,C050641,1400.00,John Burke Associates,Commercial Development Capital,Capital Regen and Housing,Regeneration & Housing,Other Prof.Fees (Capital),Professional Fees,Capital
Cherwell District Council,16/12/2020,C050727,1600.00,Jon Rowland Urban Design Ltd,Strategy and Commissioning,Development Management,Development Management,Professional Fees,Third Party Payments,Revenue
Cherwell District Council,21/12/2020,C050882,503.94,REDACTED,Commercial Development,Regeneration and Housing,Regeneration & Housing,Grants Paid Out,Supplies and Services,Revenue
Cherwell District Council,18/12/2020,C050815,1825.58,Kall Kwik Centre 1233,Strategy and Commissioning,Strategic Planning Economy,Strategic Planning & the Economy,External Print & Design Work,Supplies and Services,Revenue
Cherwell District Council,23/12/2020,C050954,899.36,Karpet Kingdom (Banbury) Ltd,Commercial Development Capital,Capital Regen and Housing,Regeneration & Housing,Contractors Capital Payments,Capital Works,Capital
Cherwell District Council,09/12/2020,C050430,2277.16,Kershaw Mechanical Services Ltd,Commercial Development,Regeneration and Housing,Development,Repair & Maintenance,Premises Related Expenditure,Revenue
Cherwell District Council,09/12/2020,C050431,502.31,Kershaw Mechanical Services Ltd,Commercial Development,Regeneration and Housing,Development,Repair & Maintenance,Premises Related Expenditure,Revenue
Cherwell District Council,09/12/2020,C050434,1317.60,Kershaw Mechanical Services Ltd,Commercial Development,Regeneration and Housing,Development,Repair & Maintenance,Premises Related Expenditure,Revenue
Cherwell District Council,09/12/2020,C050509,633.08,Kershaw Mechanical Services Ltd,Commercial Development,Regeneration and Housing,Development,Repair & Maintenance,Premises Related Expenditure,Revenue
Cherwell District Council,09/12/2020,C050577,1610.00,Kershaw Mechanical Services Ltd,Commercial Development,Regeneration and Housing,Finance & Procurement,Contractor Revenue Payments,Third Party Payments,Revenue
Cherwell District Council,09/12/2020,C050577,1610.00,Kershaw Mechanical Services Ltd,Commercial Development,Regeneration and Housing,Finance & Procurement,Contractor Revenue Payments,Third Party Payments,Revenue
Cherwell District Council,16/12/2020,C050599,501.60,Kershaw Mechanical Services Ltd,Operations and Delivery,Community Services,Development,Repair & Maintenance,Premises Related Expenditure,Revenue
Cherwell District Council,21/12/2020,C050863,1306.25,Kershaw Mechanical Services Ltd,Commercial Development,Regeneration and Housing,Regeneration & Housing,Repair & Maintenance,Premises Related Expenditure,Revenue
Cherwell District Council,30/12/2020,C051016,1189.20,Kershaw Mechanical Services Ltd,Commercial Development,Regeneration and Housing,Development,Repair & Maintenance,Premises Related Expenditure,Revenue
Cherwell District Council,23/12/2020,C050723,915.88,REDACTED,Commercial Development,Regeneration and Housing,Regeneration & Housing,Rent Deposit Scheme,Supplies and Services,Revenue
Cherwell District Council,23/12/2020,C050962,571.03,Lexon Group,Operations and Delivery,Environmental Services,Finance & Procurement,External Print & Design Work,Supplies and Services,Revenue
Cherwell District Council,09/12/2020,C050571,1600.00,Liftability Ltd,Commercial Development Capital,Capital Regen and Housing,Regeneration & Housing,Contractors Capital Payments,Capital Works,Capital
Cherwell District Council,18/12/2020,C050811,2800.00,Love2shop,Commercial Development,Human Resources,Transformation,Corporate Training,Employees,Revenue
Cherwell District Council,16/12/2020,C050596,10.83,Lyreco UK Ltd,Commercial Development,Regeneration and Housing,Finance & Procurement,Stationery,Supplies and Services,Revenue
Cherwell District Council,16/12/2020,C050596,3.02,Lyreco UK Ltd,Commercial Development,Regeneration and Housing,Finance & Procurement,Stationery,Supplies and Services,Revenue
Cherwell District Council,16/12/2020,C050596,14.70,Lyreco UK Ltd,Commercial Development,Regeneration and Housing,Finance & Procurement,Stationery,Supplies and Services,Revenue
Cherwell District Council,16/12/2020,C050596,13.28,Lyreco UK Ltd,Commercial Development,Regeneration and Housing,Finance & Procurement,Stationery,Supplies and Services,Revenue
Cherwell District Council,16/12/2020,C050596,2.16,Lyreco UK Ltd,Commercial Development,Regeneration and Housing,Finance & Procurement,Stationery,Supplies and Services,Revenue
Cherwell District Council,16/12/2020,C050596,4.90,Lyreco UK Ltd,Commercial Development,Regeneration and Housing,Finance & Procurement,Stationery,Supplies and Services,Revenue
Cherwell District Council,16/12/2020,C050596,2.56,Lyreco UK Ltd,Commercial Development,Regeneration and Housing,Finance & Procurement,Stationery,Supplies and Services,Revenue
Cherwell District Council,16/12/2020,C050596,4.60,Lyreco UK Ltd,Operations and Delivery,Community Services,Finance & Procurement,Stationery,Supplies and Services,Revenue
Cherwell District Council,16/12/2020,C050596,220.00,Lyreco UK Ltd,Operations and Delivery,Community Services,Finance & Procurement,Printing Paper,Supplies and Services,Revenue
Cherwell District Council,16/12/2020,C050596,220.00,Lyreco UK Ltd,Operations and Delivery,Community Services,Finance & Procurement,Printing Paper,Supplies and Services,Revenue
Cherwell District Council,16/12/2020,C050596,220.00,Lyreco UK Ltd,Operations and Delivery,Community Services,Finance & Procurement,Printing Paper,Supplies and Services,Revenue
Cherwell District Council,16/12/2020,C050596,6.99,Lyreco UK Ltd,Operations and Delivery,Community Services,Finance & Procurement,Stationery,Supplies and Services,Revenue
Cherwell District Council,16/12/2020,C050596,25.18,Lyreco UK Ltd,Operations and Delivery,Community Services,Finance & Procurement,Stationery,Supplies and Services,Revenue
Cherwell District Council,16/12/2020,C050596,25.18,Lyreco UK Ltd,Operations and Delivery,Community Services,Finance & Procurement,Stationery,Supplies and Services,Revenue
Cherwell District Council,16/12/2020,C050596,25.18,Lyreco UK Ltd,Operations and Delivery,Community Services,Finance & Procurement,Stationery,Supplies and Services,Revenue
Cherwell District Council,16/12/2020,C050596,25.18,Lyreco UK Ltd,Operations and Delivery,Community Services,Finance & Procurement,Stationery,Supplies and Services,Revenue
Cherwell District Council,16/12/2020,C050596,1.62,Lyreco UK Ltd,Operations and Delivery,Community Services,Finance & Procurement,Stationery,Supplies and Services,Revenue
Cherwell District Council,16/12/2020,C050596,3.96,Lyreco UK Ltd,Operations and Delivery,Environmental Services,Finance & Procurement,Stationery,Supplies and Services,Revenue
Cherwell District Council,16/12/2020,C050596,11.46,Lyreco UK Ltd,Operations and Delivery,Environmental Services,Finance & Procurement,Stationery,Supplies and Services,Revenue
Cherwell District Council,16/12/2020,C050596,2.56,Lyreco UK Ltd,Operations and Delivery,Environmental Services,Finance & Procurement,Stationery,Supplies and Services,Revenue
Cherwell District Council,16/12/2020,C050596,1.92,Lyreco UK Ltd,Strategy and Commissioning,Development Management,Finance & Procurement,Stationery,Supplies and Services,Revenue
Cherwell District Council,16/12/2020,C050596,1.92,Lyreco UK Ltd,Strategy and Commissioning,Development Management,Finance & Procurement,Stationery,Supplies and Services,Revenue
Cherwell District Council,16/12/2020,C050596,15.72,Lyreco UK Ltd,Strategy and Commissioning,Development Management,Finance & Procurement,Stationery,Supplies and Services,Revenue
Cherwell District Council,16/12/2020,C050596,0.96,Lyreco UK Ltd,Strategy and Commissioning,Development Management,Finance & Procurement,Stationery,Supplies and Services,Revenue
Cherwell District Council,16/12/2020,C050596,8.75,Lyreco UK Ltd,Strategy and Commissioning,Development Management,Finance & Procurement,Stationery,Supplies and Services,Revenue
Cherwell District Council,16/12/2020,C050596,8.32,Lyreco UK Ltd,Strategy and Commissioning,Law and Governance,Finance & Procurement,Stationery,Supplies and Services,Revenue
Cherwell District Council,16/12/2020,C050596,7.82,Lyreco UK Ltd,Strategy and Commissioning,Law and Governance,Finance & Procurement,Stationery,Supplies and Services,Revenue
Cherwell District Council,23/12/2020,C050993,8200.20,M J Stilp Ltd T/A Stilp Property Services,Commercial Development Capital,Capital Regen and Housing,Regeneration & Housing,Contractors Capital Payments,Capital Works,Capital
Cherwell District Council,18/12/2020,C050793,3000.00,REDACTED,Strategy and Commissioning,Development Management,Law & Governance,Legal Fees,Third Party Payments,Revenue
Cherwell District Council,02/12/2020,C050049,967.85,Maffoo Limited,Strategy and Commissioning,Development Management,Law & Governance,Legal Fees,Third Party Payments,Revenue
Cherwell District Council,16/12/2020,C050699,726.00,Maun Motors,Operations and Delivery,Environmental Services,Environmental Services,Hire Rental Leasing of Equipment,Supplies and Services,Revenue
Cherwell District Council,16/12/2020,C050624,700.00,MCA Tracing Services,Chief Finance Officer,Finance and Procurement,Finance & Procurement,"Computer Software, Licensing & Maintenan",Supplies and Services,Revenue
Cherwell District Council,02/12/2020,C050339,4545.09,McLaren Construction (Midlands & North) Limited,Chief Finance Officer Capital,Capital Finance and Procuremen,Finance & Procurement,Contractors Capital Payments,Capital Works,Capital
Cherwell District Council,07/12/2020,C050394,3259825.00,McLaren Construction (Midlands & North) Limited,Chief Finance Officer Capital,Capital Finance and Procuremen,Finance & Procurement,Contractors Capital Payments,Capital Works,Capital
Cherwell District Council,04/12/2020,C050364,1318.15,Michael Page International,Commercial Development,Regeneration and Housing,Finance & Procurement,Agency Staff,Employees,Revenue
Cherwell District Council,09/12/2020,C050585,1679.76,Michael Page International,Commercial Development,Regeneration and Housing,Finance & Procurement,Agency Staff,Employees,Revenue
Cherwell District Council,16/12/2020,C050778,1166.50,Michael Page International,Commercial Development,Regeneration and Housing,Finance & Procurement,Agency Staff,Employees,Revenue
Cherwell District Council,30/12/2020,C051065,1318.15,Michael Page International,Commercial Development,Regeneration and Housing,Finance & Procurement,Agency Staff,Employees,Revenue
Cherwell District Council,23/12/2020,C050844,47575.64,Midland Felt Roofing Ltd,,,Development,Contractors Capital Payments,Capital Works,
Cherwell District Council,21/12/2020,C050888,600.60,Milcombe Parish Council,Chief Finance Officer,Finance and Procurement,Environmental Services,Other Fees & Charges,Fees and Charges,Revenue
Cherwell District Council,18/12/2020,C050786,8839.50,Mollington Parish Council,Operations and Delivery Cap,Capital Community Services,Resources,Grants paid,Capital Works,Capital
Cherwell District Council,30/12/2020,C051011,52500.00,Montagu Evans,Commercial Development,Regeneration and Housing,Finance & Procurement,Management Fees,Third Party Payments,Revenue
Cherwell District Council,16/12/2020,C050704,55.00,Motorline Nissan Oxford,Operations and Delivery,Environmental Services,Finance & Procurement,Road Fund Licence,Transport Related Expenditure,Revenue
Cherwell District Council,16/12/2020,C050704,28301.06,Motorline Nissan Oxford,Operations and Delivery Cap,Capital Environmental Services,Finance & Procurement,Contractors Capital Payments,Capital Works,Capital
Cherwell District Council,07/12/2020,C050433,500.00,Muddy Feet Training,Operations and Delivery,Community Services,Community Services,Grants Paid Out,Supplies and Services,Revenue
Cherwell District Council,02/12/2020,C050202,1159.93,New Recruits Professional Services Ltd,Operations and Delivery,Environmental Services,Environmental Services,Agency Staff,Employees,Revenue
Cherwell District Council,09/12/2020,C050421,3404.09,New Recruits Professional Services Ltd,Operations and Delivery,Environmental Services,Environmental Services,Agency Staff,Employees,Revenue
Cherwell District Council,09/12/2020,C050421,591.63,New Recruits Professional Services Ltd,Operations and Delivery,Environmental Services,Environmental Services,Agency Staff,Employees,Revenue
Cherwell District Council,09/12/2020,C050422,591.63,New Recruits Professional Services Ltd,Operations and Delivery,Environmental Services,Environmental Services,Agency Staff,Employees,Revenue
Cherwell District Council,16/12/2020,C050625,443.72,New Recruits Professional Services Ltd,Operations and Delivery,Environmental Services,Environmental Services,Agency Staff,Employees,Revenue
Cherwell District Council,16/12/2020,C050625,1777.11,New Recruits Professional Services Ltd,Operations and Delivery,Environmental Services,Environmental Services,Agency Staff,Employees,Revenue
Cherwell District Council,16/12/2020,C050626,1059.31,New Recruits Professional Services Ltd,Operations and Delivery,Environmental Services,Environmental Services,Agency Staff,Employees,Revenue
Cherwell District Council,23/12/2020,C050837,2368.74,New Recruits Professional Services Ltd,Operations and Delivery,Environmental Services,Environmental Services,Agency Staff,Employees,Revenue
Cherwell District Council,23/12/2020,C050838,911.40,New Recruits Professional Services Ltd,Operations and Delivery,Environmental Services,Environmental Services,Agency Staff,Employees,Revenue
Cherwell District Council,30/12/2020,C051043,942.39,New Recruits Professional Services Ltd,Operations and Delivery,Environmental Services,Environmental Services,Agency Staff,Employees,Revenue
Cherwell District Council,30/12/2020,C051044,3079.51,New Recruits Professional Services Ltd,Operations and Delivery,Environmental Services,Environmental Services,Agency Staff,Employees,Revenue
Cherwell District Council,04/12/2020,C050224,625.00,North Oxfordshire Conservative Association,Current Liabilities,Short-term creditors - current,Finance & Procurement,Credited to Other Accounts,Other Debit Transactions,Balance Sheet
Cherwell District Council,30/12/2020,C051027,625.00,North Oxfordshire Conservative Association,Current Liabilities,Short-term creditors - current,Finance & Procurement,Credited to Other Accounts,Other Debit Transactions,Balance Sheet
Cherwell District Council,04/12/2020,C050378,1000.00,North Oxfordshire Food Bank,Strategy and Commissioning,Business Support Unit,Resources,Grants Paid Out,Supplies and Services,Revenue
Cherwell District Council,16/12/2020,C050638,3099.00,NorthgatePublic Services (UK) Ltd,Chief Finance Officer Capital,Capital Finance and Procuremen,Finance & Procurement,Contractors Capital Payments,Capital Works,Capital
Cherwell District Council,18/12/2020,C050646,16552.46,NorthgatePublic Services (UK) Ltd,Chief Finance Officer Capital,Capital Finance and Procuremen,Finance & Procurement,Contractors Capital Payments,Capital Works,Capital
Cherwell District Council,16/12/2020,C050621,513.59,NPower Limted,Operations and Delivery,Community Services,Community Services,Kingsmere Expenditure on Charity Behalf,Supplies and Services,Revenue
Cherwell District Council,16/12/2020,C050614,195.65,O2 (UK) Ltd,Commercial Development,Information Services,ICT,Mobile Phones,Supplies and Services,Revenue
Cherwell District Council,16/12/2020,C050614,1965.84,O2 (UK) Ltd,Commercial Development,Information Services,ICT,Mobile Phones,Supplies and Services,Revenue
Cherwell District Council,18/12/2020,C050826,7922.00,Oxford Archaeological Unit Ltd,Operations and Delivery,Environmental Services,Finance & Procurement,Consultants Fees,Third Party Payments,Revenue
Cherwell District Council,09/12/2020,C050567,1800.00,Oxford Architects,Commercial Development Capital,Capital Regen and Housing,Regeneration & Housing,Other Prof.Fees (Capital),Professional Fees,Capital
Cherwell District Council,16/12/2020,C050593,3790.00,Oxford Brookes University,Commercial Development,Human Resources,Transformation,Post Entry Training,Employees,Revenue
Cherwell District Council,16/12/2020,C050631,1647.98,Oxford City Flooring Ltd,,,Finance & Procurement,Contractors Capital Payments,Capital Works,
Cherwell District Council,16/12/2020,C050631,793.20,Oxford City Flooring Ltd,,,Finance & Procurement,Contractors Capital Payments,Capital Works,
Cherwell District Council,16/12/2020,C050631,1647.98,Oxford City Flooring Ltd,,,Finance & Procurement,Contractors Capital Payments,Capital Works,
Cherwell District Council,16/12/2020,C050631,793.20,Oxford City Flooring Ltd,,,Finance & Procurement,Contractors Capital Payments,Capital Works,
Cherwell District Council,02/12/2020,C050337,12.50,Oxford Security Services,Commercial Development,Regeneration and Housing,Regeneration & Housing,Management Fees,Third Party Payments,Revenue
Cherwell District Council,02/12/2020,C050337,12.50,Oxford Security Services,Commercial Development,Regeneration and Housing,Regeneration & Housing,Management Fees,Third Party Payments,Revenue
Cherwell District Council,02/12/2020,C050337,12.50,Oxford Security Services,Commercial Development,Regeneration and Housing,Regeneration & Housing,Management Fees,Third Party Payments,Revenue
Cherwell District Council,02/12/2020,C050337,12.50,Oxford Security Services,Commercial Development,Regeneration and Housing,Regeneration & Housing,Management Fees,Third Party Payments,Revenue
Cherwell District Council,02/12/2020,C050337,12.50,Oxford Security Services,Commercial Development,Regeneration and Housing,Regeneration & Housing,Management Fees,Third Party Payments,Revenue
Cherwell District Council,02/12/2020,C050337,12.50,Oxford Security Services,Commercial Development,Regeneration and Housing,Regeneration & Housing,Management Fees,Third Party Payments,Revenue
Cherwell District Council,02/12/2020,C050337,2.09,Oxford Security Services,Commercial Development,Regeneration and Housing,Regeneration & Housing,Management Fees,Third Party Payments,Revenue
Cherwell District Council,02/12/2020,C050337,222.08,Oxford Security Services,Commercial Development,Regeneration and Housing,Regeneration & Housing,Management Fees,Third Party Payments,Revenue
Cherwell District Council,02/12/2020,C050337,12.50,Oxford Security Services,Commercial Development,Regeneration and Housing,Regeneration & Housing,Management Fees,Third Party Payments,Revenue
Cherwell District Council,02/12/2020,C050337,11.59,Oxford Security Services,Commercial Development,Regeneration and Housing,Regeneration & Housing,Management Fees,Third Party Payments,Revenue
Cherwell District Council,02/12/2020,C050337,12.50,Oxford Security Services,Commercial Development,Regeneration and Housing,Regeneration & Housing,Management Fees,Third Party Payments,Revenue
Cherwell District Council,02/12/2020,C050337,12.50,Oxford Security Services,Commercial Development,Regeneration and Housing,Regeneration & Housing,Management Fees,Third Party Payments,Revenue
Cherwell District Council,02/12/2020,C050337,12.50,Oxford Security Services,Commercial Development,Regeneration and Housing,Regeneration & Housing,Management Fees,Third Party Payments,Revenue
Cherwell District Council,02/12/2020,C050337,1583.00,Oxford Security Services,Commercial Development,Regeneration and Housing,Regeneration & Housing,Management Fees,Third Party Payments,Revenue
Cherwell District Council,02/12/2020,C050337,12.50,Oxford Security Services,Commercial Development,Regeneration and Housing,Regeneration & Housing,Management Fees,Third Party Payments,Revenue
Cherwell District Council,02/12/2020,C050337,12.50,Oxford Security Services,Commercial Development,Regeneration and Housing,Regeneration & Housing,Management Fees,Third Party Payments,Revenue
Cherwell District Council,02/12/2020,C050337,12.50,Oxford Security Services,Commercial Development,Regeneration and Housing,Regeneration & Housing,Management Fees,Third Party Payments,Revenue
Cherwell District Council,02/12/2020,C050337,12.50,Oxford Security Services,Commercial Development,Regeneration and Housing,Regeneration & Housing,Management Fees,Third Party Payments,Revenue
Cherwell District Council,02/12/2020,C050337,12.50,Oxford Security Services,Commercial Development,Regeneration and Housing,Regeneration & Housing,Management Fees,Third Party Payments,Revenue
Cherwell District Council,02/12/2020,C050337,12.50,Oxford Security Services,Commercial Development,Regeneration and Housing,Regeneration & Housing,Management Fees,Third Party Payments,Revenue
Cherwell District Council,02/12/2020,C050337,12.50,Oxford Security Services,Commercial Development,Regeneration and Housing,Regeneration & Housing,Management Fees,Third Party Payments,Revenue
Cherwell District Council,02/12/2020,C050337,12.50,Oxford Security Services,Commercial Development,Regeneration and Housing,Regeneration & Housing,Management Fees,Third Party Payments,Revenue
Cherwell District Council,02/12/2020,C050337,2.08,Oxford Security Services,Commercial Development,Regeneration and Housing,Regeneration & Housing,Management Fees,Third Party Payments,Revenue
Cherwell District Council,02/12/2020,C050337,2.08,Oxford Security Services,Commercial Development,Regeneration and Housing,Regeneration & Housing,Management Fees,Third Party Payments,Revenue
Cherwell District Council,02/12/2020,C050337,2.08,Oxford Security Services,Commercial Development,Regeneration and Housing,Regeneration & Housing,Management Fees,Third Party Payments,Revenue
Cherwell District Council,02/12/2020,C050337,2.09,Oxford Security Services,Commercial Development,Regeneration and Housing,Regeneration & Housing,Management Fees,Third Party Payments,Revenue
Cherwell District Council,02/12/2020,C050337,0.91,Oxford Security Services,Commercial Development,Regeneration and Housing,Regeneration & Housing,Management Fees,Third Party Payments,Revenue
Cherwell District Council,09/12/2020,C050506,4200.00,Oxford Security Services,Commercial Development,Regeneration and Housing,Development,Contractor Revenue Payments,Third Party Payments,Revenue
Cherwell District Council,09/12/2020,C050506,12.48,Oxford Security Services,Commercial Development,Regeneration and Housing,Development,Contractor Revenue Payments,Third Party Payments,Revenue
Cherwell District Council,09/12/2020,C050506,1162.48,Oxford Security Services,Commercial Development,Regeneration and Housing,Development,Contractor Revenue Payments,Third Party Payments,Revenue
Cherwell District Council,09/12/2020,C050506,712.48,Oxford Security Services,Commercial Development,Regeneration and Housing,Development,Contractor Revenue Payments,Third Party Payments,Revenue
Cherwell District Council,09/12/2020,C050506,462.48,Oxford Security Services,Commercial Development,Regeneration and Housing,Development,Contractor Revenue Payments,Third Party Payments,Revenue
Cherwell District Council,09/12/2020,C050506,462.48,Oxford Security Services,Commercial Development,Regeneration and Housing,Development,Contractor Revenue Payments,Third Party Payments,Revenue
Cherwell District Council,09/12/2020,C050506,12.48,Oxford Security Services,Commercial Development,Regeneration and Housing,Development,Contractor Revenue Payments,Third Party Payments,Revenue
Cherwell District Council,09/12/2020,C050506,12.48,Oxford Security Services,Commercial Development,Regeneration and Housing,Development,Contractor Revenue Payments,Third Party Payments,Revenue
Cherwell District Council,10/12/2020,C049953,2260.00,Oxfordshire Community & Voluntary Action,Operations and Delivery,Community Services,Community Services,Grants Paid Out,Supplies and Services,Revenue
Cherwell District Council,10/12/2020,C049955,1500.00,Oxfordshire Community & Voluntary Action,Operations and Delivery,Community Services,Community Services,Grants Paid Out,Supplies and Services,Revenue
Cherwell District Council,02/12/2020,C050314,4243.63,Oxfordshire County Council,Operations and Delivery,Environmental Services,Environmental Services,Refuse Disposal Charge,Third Party Payments,Revenue
Cherwell District Council,04/12/2020,C050363,86902.75,Oxfordshire County Council,Current Liabilities,Short-term creditors - current,Finance & Procurement,Credited to Other Accounts,Other Debit Transactions,Balance Sheet
Cherwell District Council,04/12/2020,C050363,200855.06,Oxfordshire County Council,Current Liabilities,Short-term creditors - current,Finance & Procurement,Credited to Other Accounts,Other Debit Transactions,Balance Sheet
Cherwell District Council,04/12/2020,C050363,19093.43,Oxfordshire County Council,Current Liabilities,Short-term creditors - current,Finance & Procurement,Credited to Other Accounts,Other Debit Transactions,Balance Sheet
Cherwell District Council,16/12/2020,C050637,916.89,Oxfordshire County Council,Operations and Delivery,Community Services,Finance & Procurement,Shared salary costs from local authoriti,Employees,Revenue
Cherwell District Council,16/12/2020,C050637,611.26,Oxfordshire County Council,Operations and Delivery,Community Services,Finance & Procurement,Shared salary costs from local authoriti,Employees,Revenue
Cherwell District Council,16/12/2020,C050637,305.63,Oxfordshire County Council,Operations and Delivery,Community Services,Finance & Procurement,Shared salary costs from local authoriti,Employees,Revenue
Cherwell District Council,16/12/2020,C050637,305.63,Oxfordshire County Council,Operations and Delivery,Community Services,Finance & Procurement,Shared salary costs from local authoriti,Employees,Revenue
Cherwell District Council,16/12/2020,C050637,1222.54,Oxfordshire County Council,Operations and Delivery,Community Services,Finance & Procurement,Shared salary costs from local authoriti,Employees,Revenue
Cherwell District Council,16/12/2020,C050637,916.89,Oxfordshire County Council,Operations and Delivery,Community Services,Finance & Procurement,Shared salary costs from local authoriti,Employees,Revenue
Cherwell District Council,16/12/2020,C050637,305.63,Oxfordshire County Council,Operations and Delivery,Community Services,Finance & Procurement,Shared salary costs from local authoriti,Employees,Revenue
Cherwell District Council,16/12/2020,C050637,611.26,Oxfordshire County Council,Operations and Delivery,Community Services,Finance & Procurement,Shared salary costs from local authoriti,Employees,Revenue
Cherwell District Council,16/12/2020,C050637,916.89,Oxfordshire County Council,Operations and Delivery,Environmental Services,Finance & Procurement,Shared salary costs from local authoriti,Employees,Revenue
Cherwell District Council,30/12/2020,C051090,3603.27,Oxfordshire County Council,Operations and Delivery,Environmental Services,Environmental Services,Refuse Disposal Charge,Third Party Payments,Revenue
Cherwell District Council,23/12/2020,C050916,2300.00,Oxfordshire MIND,Operations and Delivery,Community Services,Community Services,Consultants Fees,Third Party Payments,Revenue
Cherwell District Council,07/12/2020,C050195,1389.15,Oyster Partnership,Strategy and Commissioning,Development Management,Development Management,Agency Staff,Employees,Revenue
Cherwell District Council,02/12/2020,C050275,1157.70,Oyster Partnership,Operations and Delivery,Community Services,Community Services,Professional Fees,Third Party Payments,Revenue
Cherwell District Council,09/12/2020,C050413,651.00,Oyster Partnership,Strategy and Commissioning,Development Management,Development Management,Agency Staff,Employees,Revenue
Cherwell District Council,09/12/2020,C050414,1591.00,Oyster Partnership,Strategy and Commissioning,Development Management,Development Management,Agency Staff,Employees,Revenue
Cherwell District Council,07/12/2020,C050446,1149.60,Oyster Partnership,Operations and Delivery,Community Services,Community Services,Professional Fees,Third Party Payments,Revenue
Cherwell District Council,07/12/2020,C050447,1164.00,Oyster Partnership,Operations and Delivery,Community Services,Community Services,Professional Fees,Third Party Payments,Revenue
Cherwell District Council,07/12/2020,C050448,1480.00,Oyster Partnership,Operations and Delivery,Community Services,Community Services,Professional Fees,Third Party Payments,Revenue
Cherwell District Council,18/12/2020,C050746,1632.40,Oyster Partnership,Strategy and Commissioning,Development Management,Development Management,Agency Staff,Employees,Revenue
Cherwell District Council,18/12/2020,C050747,1092.00,Oyster Partnership,Strategy and Commissioning,Development Management,Development Management,Agency Staff,Employees,Revenue
Cherwell District Council,16/12/2020,C050754,1164.00,Oyster Partnership,Operations and Delivery,Community Services,Community Services,Professional Fees,Third Party Payments,Revenue
Cherwell District Council,16/12/2020,C050755,1157.25,Oyster Partnership,Operations and Delivery,Community Services,Community Services,Professional Fees,Third Party Payments,Revenue
Cherwell District Council,16/12/2020,C050756,1480.00,Oyster Partnership,Operations and Delivery,Community Services,Community Services,Professional Fees,Third Party Payments,Revenue
Cherwell District Council,21/12/2020,C050833,1123.50,Oyster Partnership,Strategy and Commissioning,Development Management,Development Management,Agency Staff,Employees,Revenue
Cherwell District Council,30/12/2020,C051081,1159.50,Oyster Partnership,Operations and Delivery,Community Services,Community Services,Professional Fees,Third Party Payments,Revenue
Cherwell District Council,30/12/2020,C051082,1480.00,Oyster Partnership,Operations and Delivery,Community Services,Community Services,Professional Fees,Third Party Payments,Revenue
Cherwell District Council,30/12/2020,C051083,1111.50,Oyster Partnership,Operations and Delivery,Community Services,Community Services,Professional Fees,Third Party Payments,Revenue
Cherwell District Council,30/12/2020,C050936,22790.68,Pace Petroleum Ltd,Current Assets,Inventories,Finance & Procurement,Stores Purchases,Payments Made,Balance Sheet
Cherwell District Council,30/12/2020,C050937,16016.75,Pace Petroleum Ltd,Current Assets,Inventories,Finance & Procurement,Stores Purchases,Payments Made,Balance Sheet
Cherwell District Council,09/12/2020,C050576,10782.00,Parkwood Leisure Ltd,Operations and Delivery,Community Services,Community Services,Management Fees,Third Party Payments,Revenue
Cherwell District Council,18/12/2020,C050580,14456.00,Parkwood Leisure Ltd,Operations and Delivery,Community Services,Community Services,Management Fees,Third Party Payments,Revenue
Cherwell District Council,09/12/2020,C050582,7585.50,Parkwood Leisure Ltd,Operations and Delivery,Community Services,Community Services,Management Fees,Third Party Payments,Revenue
Cherwell District Council,16/12/2020,C050606,10782.00,Parkwood Leisure Ltd,Operations and Delivery,Community Services,Community Services,Management Fees,Third Party Payments,Revenue
Cherwell District Council,30/12/2020,C051036,4861.78,Parkwood Leisure Ltd,Operations and Delivery,Community Services,Community Services,Whitelands and Stratfield Brake,Third Party Payments,Revenue
Cherwell District Council,30/12/2020,C051036,7492.90,Parkwood Leisure Ltd,Operations and Delivery,Community Services,Community Services,Whitelands and Stratfield Brake,Third Party Payments,Revenue
Cherwell District Council,10/12/2020,C050380,500.00,REDACTED,Operations and Delivery,Community Services,Community Services,Consultants Fees,Third Party Payments,Revenue
Cherwell District Council,18/12/2020,C050634,2609.00,Pearson Assessment,Operations and Delivery,Community Services,Community Services,Other misc payments,Third Party Payments,Revenue
Cherwell District Council,16/12/2020,C050635,12348.00,Penna PLC,Chief Finance Officer,Finance and Procurement,Finance & Procurement,Agency Staff,Employees,Revenue
Cherwell District Council,16/12/2020,C050653,17010.00,Penna PLC,Strategy and Commissioning,Development Management,Finance & Procurement,Agency Staff,Employees,Revenue
Cherwell District Council,09/12/2020,C050492,1291.95,Perfect Circle JV Ltd,Chief Finance Officer Capital,Capital Finance and Procuremen,Regeneration & Housing,Contractors Capital Payments,Capital Works,Capital
Cherwell District Council,18/12/2020,C050783,2191.00,Permiserv Ltd,Operations and Delivery,Environmental Services,Finance & Procurement,External Print & Design Work,Supplies and Services,Revenue
Cherwell District Council,18/12/2020,C050495,2500.70,Pitney Bowes Finance Plc,Operations and Delivery,Community Services,Community Services,Hire Rental Leasing of Equipment,Supplies and Services,Revenue
Cherwell District Council,09/12/2020,C050320,500.00,Playsafety Ltd,Operations and Delivery Cap,Capital Community Services,Community Services,Contractors Capital Payments,Capital Works,Capital
Cherwell District Council,10/12/2020,C050496,265.00,Post Office Ltd,Operations and Delivery,Environmental Services,Environmental Services,Road Fund Licence,Transport Related Expenditure,Revenue
Cherwell District Council,10/12/2020,C050496,795.00,Post Office Ltd,Operations and Delivery,Environmental Services,Environmental Services,Road Fund Licence,Transport Related Expenditure,Revenue
Cherwell District Council,10/12/2020,C050496,95.00,Post Office Ltd,Operations and Delivery,Environmental Services,Environmental Services,Road Fund Licence,Transport Related Expenditure,Revenue
Cherwell District Council,18/12/2020,C050819,1469.00,Powertecnique,Commercial Development,Regeneration and Housing,Finance & Procurement,Repair & Maintenance,Premises Related Expenditure,Revenue
Cherwell District Council,30/12/2020,C050853,4112.50,Press Red Ltd,Operations and Delivery Cap,Capital Community Services,Community Services,Other Prof.Fees (Capital),Professional Fees,Capital
Cherwell District Council,04/12/2020,C050354,2250.00,Prime Construction Management Ltd,Commercial Development,Regeneration and Housing,Finance & Procurement,Consultants Fees,Third Party Payments,Revenue
Cherwell District Council,09/12/2020,C050579,2250.00,Prime Construction Management Ltd,Commercial Development,Regeneration and Housing,Finance & Procurement,Consultants Fees,Third Party Payments,Revenue
Cherwell District Council,16/12/2020,C050763,2250.00,Prime Construction Management Ltd,Commercial Development,Regeneration and Housing,Finance & Procurement,Consultants Fees,Third Party Payments,Revenue
Cherwell District Council,23/12/2020,C050910,2250.00,Prime Construction Management Ltd,Commercial Development,Regeneration and Housing,Finance & Procurement,Consultants Fees,Third Party Payments,Revenue
Cherwell District Council,30/12/2020,C051024,2778.66,Prudential Assurance Co Ltd,Current Liabilities,Short-term creditors - current,Finance & Procurement,Credited to Other Accounts,Other Debit Transactions,Balance Sheet
Cherwell District Council,07/12/2020,C050406,1220.00,PWC Living Solutions Ltd,Commercial Development Capital,Capital Regen and Housing,Regeneration & Housing,Contractors Capital Payments,Capital Works,Capital
Cherwell District Council,07/12/2020,C050407,1650.00,PWC Living Solutions Ltd,Commercial Development Capital,Capital Regen and Housing,Regeneration & Housing,Contractors Capital Payments,Capital Works,Capital
Cherwell District Council,18/12/2020,C050613,2346.75,PWC Living Solutions Ltd,Commercial Development Capital,Capital Regen and Housing,Regeneration & Housing,Contractors Capital Payments,Capital Works,Capital
Cherwell District Council,23/12/2020,C050963,1816.32,PWC Living Solutions Ltd,Commercial Development Capital,Capital Regen and Housing,Regeneration & Housing,Contractors Capital Payments,Capital Works,Capital
Cherwell District Council,23/12/2020,C050967,1875.07,PWC Living Solutions Ltd,Commercial Development Capital,Capital Regen and Housing,Regeneration & Housing,Contractors Capital Payments,Capital Works,Capital
Cherwell District Council,07/12/2020,C050402,2231.04,REDACTED,Commercial Development Capital,Capital Regen and Housing,Regeneration & Housing,Contractors Capital Payments,Capital Works,Capital
Cherwell District Council,07/12/2020,C050403,2800.00,REDACTED,Commercial Development Capital,Capital Regen and Housing,Regeneration & Housing,Contractors Capital Payments,Capital Works,Capital
Cherwell District Council,07/12/2020,C050404,1564.85,REDACTED,Commercial Development Capital,Capital Regen and Housing,Regeneration & Housing,Contractors Capital Payments,Capital Works,Capital
Cherwell District Council,07/12/2020,C050409,1475.00,REDACTED,Commercial Development,Regeneration and Housing,Regeneration & Housing,Consultants Fees,Third Party Payments,Revenue
Cherwell District Council,09/12/2020,C050572,5540.00,REDACTED,Commercial Development Capital,Capital Regen and Housing,Regeneration & Housing,Contractors Capital Payments,Capital Works,Capital
Cherwell District Council,16/12/2020,C050678,574.07,REDACTED,Commercial Development,Regeneration and Housing,Regeneration & Housing,Repair & Maintenance,Premises Related Expenditure,Revenue
Cherwell District Council,30/12/2020,C050724,805.56,REDACTED,Commercial Development,Regeneration and Housing,Regeneration & Housing,Rent Deposit Scheme,Supplies and Services,Revenue
Cherwell District Council,21/12/2020,C050849,676.49,REDACTED,Commercial Development,Regeneration and Housing,Regeneration & Housing,Rent Deposit Scheme,Supplies and Services,Revenue
Cherwell District Council,23/12/2020,C050917,1635.26,REDACTED,Commercial Development Capital,Capital Regen and Housing,Regeneration & Housing,Contractors Capital Payments,Capital Works,Capital
Cherwell District Council,23/12/2020,C050948,602.00,REDACTED,Commercial Development Capital,Capital Regen and Housing,Regeneration & Housing,Contractors Capital Payments,Capital Works,Capital
Cherwell District Council,23/12/2020,C050969,1130.00,REDACTED,Commercial Development Capital,Capital Regen and Housing,Regeneration & Housing,Contractors Capital Payments,Capital Works,Capital
Cherwell District Council,18/12/2020,C050810,670.00,RMIF,Commercial Development,Human Resources,Transformation,CPD Training,Employees,Revenue
Cherwell District Council,21/12/2020,C050293,3.20,Royal Mail,Chief Finance Officer,Finance and Procurement,Community Services,Postages Expenses,Supplies and Services,Revenue
Cherwell District Council,21/12/2020,C050293,840.79,Royal Mail,Chief Finance Officer,Finance and Procurement,Community Services,Postages Expenses,Supplies and Services,Revenue
Cherwell District Council,21/12/2020,C050293,68.38,Royal Mail,Chief Finance Officer,Finance and Procurement,Community Services,Postages Expenses,Supplies and Services,Revenue
Cherwell District Council,21/12/2020,C050293,346.97,Royal Mail,Operations and Delivery,Community Services,Community Services,Postages Expenses,Supplies and Services,Revenue
Cherwell District Council,21/12/2020,C050293,68.38,Royal Mail,Strategy and Commissioning,Development Management,Community Services,Postages Expenses,Supplies and Services,Revenue
Cherwell District Council,18/12/2020,C050294,168.04,Royal Mail,Chief Finance Officer,Finance and Procurement,Community Services,Postages Expenses,Supplies and Services,Revenue
Cherwell District Council,18/12/2020,C050294,140.30,Royal Mail,Chief Finance Officer,Finance and Procurement,Community Services,Postages Expenses,Supplies and Services,Revenue
Cherwell District Council,18/12/2020,C050294,831.26,Royal Mail,Strategy and Commissioning,Development Management,Community Services,Postages Expenses,Supplies and Services,Revenue
Cherwell District Council,18/12/2020,C050788,2400.00,REDACTED,Commercial Development,Regeneration and Housing,Regeneration & Housing,Consultants Fees,Third Party Payments,Revenue
Cherwell District Council,30/12/2020,C051071,9500.00,Shire Mobility Ltd,Commercial Development,Regeneration and Housing,Finance & Procurement,Management Fees,Third Party Payments,Revenue
Cherwell District Council,02/12/2020,C050304,539.25,Simplicity,Commercial Development,Regeneration and Housing,Finance & Procurement,Agency Staff,Employees,Revenue
Cherwell District Council,07/12/2020,C050444,539.25,Simplicity,Commercial Development,Regeneration and Housing,Finance & Procurement,Agency Staff,Employees,Revenue
Cherwell District Council,16/12/2020,C050644,560.00,SMI Group,Current Assets,Inventories,Finance & Procurement,Stores Purchases,Payments Made,Balance Sheet
Cherwell District Council,18/12/2020,C050809,560.00,SMI Group,Current Assets,Inventories,Finance & Procurement,Stores Purchases,Payments Made,Balance Sheet
Cherwell District Council,21/12/2020,C050876,563.85,SMI Group,Current Assets,Inventories,Finance & Procurement,Stores Purchases,Payments Made,Balance Sheet
Cherwell District Council,21/12/2020,C050877,650.14,SMI Group,Current Assets,Inventories,Finance & Procurement,Stores Purchases,Payments Made,Balance Sheet
Cherwell District Council,21/12/2020,C050899,597.36,SMI Group,Operations and Delivery,Environmental Services,Finance & Procurement,Protective Clothing Expenses,Supplies and Services,Revenue
Cherwell District Council,18/12/2020,C050790,4792.00,South East Midlands Local Enterprise Partnership,,,Finance & Procurement,Professional Fees,Third Party Payments,
Cherwell District Council,09/12/2020,C050469,1250.00,Stansfield  Auto Electrical Services Ltd,Operations and Delivery,Environmental Services,Environmental Services,Vehicle Repair & Maintenance,Transport Related Expenditure,Revenue
Cherwell District Council,09/12/2020,C050470,1250.00,Stansfield  Auto Electrical Services Ltd,Operations and Delivery,Environmental Services,Environmental Services,Vehicle Repair & Maintenance,Transport Related Expenditure,Revenue
Cherwell District Council,16/12/2020,C050775,1250.00,Stansfield  Auto Electrical Services Ltd,Operations and Delivery,Environmental Services,Environmental Services,Vehicle Repair & Maintenance,Transport Related Expenditure,Revenue
Cherwell District Council,16/12/2020,C050776,1250.00,Stansfield  Auto Electrical Services Ltd,Operations and Delivery,Environmental Services,Environmental Services,Vehicle Repair & Maintenance,Transport Related Expenditure,Revenue
Cherwell District Council,23/12/2020,C050942,1250.00,Stansfield  Auto Electrical Services Ltd,Operations and Delivery,Environmental Services,Environmental Services,Vehicle Repair & Maintenance,Transport Related Expenditure,Revenue
Cherwell District Council,21/12/2020,C050881,960.00,Stantec UK Limited,Commercial Development Capital,Capital Regen and Housing,Regeneration & Housing,Other Prof.Fees (Capital),Professional Fees,Capital
Cherwell District Council,23/12/2020,C050946,1334.80,Systemair Ltd t/a Menerga Technical Services,Commercial Development,Regeneration and Housing,Finance & Procurement,Repair & Maintenance,Premises Related Expenditure,Revenue
Cherwell District Council,23/12/2020,C050947,700.00,Systemair Ltd t/a Menerga Technical Services,Commercial Development,Regeneration and Housing,Finance & Procurement,Repair & Maintenance,Premises Related Expenditure,Revenue
Cherwell District Council,18/12/2020,C050408,1500.00,REDACTED,Commercial Development Capital,Capital Regen and Housing,Regeneration & Housing,Contractors Capital Payments,Capital Works,Capital
Cherwell District Council,02/12/2020,C050310,859.66,Terberg Matec UK Ltd,Operations and Delivery,Environmental Services,Environmental Services,Vehicle Repair & Maintenance,Transport Related Expenditure,Revenue
Cherwell District Council,18/12/2020,C050670,500.00,The ICC,Commercial Development,Regeneration and Housing,Regeneration & Housing,Contract Cleaning,Premises Related Expenditure,Revenue
Cherwell District Council,18/12/2020,C050673,1050.00,The ICC,Commercial Development,Regeneration and Housing,Regeneration & Housing,Repair & Maintenance,Premises Related Expenditure,Revenue
Cherwell District Council,18/12/2020,C050688,2250.00,The ICC,Commercial Development,Regeneration and Housing,Regeneration & Housing,Repair & Maintenance,Premises Related Expenditure,Revenue
Cherwell District Council,18/12/2020,C050692,862.50,The ICC,Commercial Development,Regeneration and Housing,Regeneration & Housing,Repair & Maintenance,Premises Related Expenditure,Revenue
Cherwell District Council,18/12/2020,C050693,512.50,The ICC,Commercial Development,Regeneration and Housing,Regeneration & Housing,Repair & Maintenance,Premises Related Expenditure,Revenue
Cherwell District Council,18/12/2020,C050694,687.50,The ICC,Commercial Development,Regeneration and Housing,Regeneration & Housing,Repair & Maintenance,Premises Related Expenditure,Revenue
Cherwell District Council,16/12/2020,C050695,239.59,The ICC,Commercial Development,Regeneration and Housing,Regeneration & Housing,Repair & Maintenance,Premises Related Expenditure,Revenue
Cherwell District Council,16/12/2020,C050695,239.59,The ICC,Commercial Development,Regeneration and Housing,Regeneration & Housing,Repair & Maintenance,Premises Related Expenditure,Revenue
Cherwell District Council,16/12/2020,C050695,239.58,The ICC,Commercial Development,Regeneration and Housing,Regeneration & Housing,Repair & Maintenance,Premises Related Expenditure,Revenue
Cherwell District Council,16/12/2020,C050695,239.58,The ICC,Commercial Development,Regeneration and Housing,Regeneration & Housing,Repair & Maintenance,Premises Related Expenditure,Revenue
Cherwell District Council,16/12/2020,C050695,239.58,The ICC,Commercial Development,Regeneration and Housing,Regeneration & Housing,Repair & Maintenance,Premises Related Expenditure,Revenue
Cherwell District Council,16/12/2020,C050695,239.58,The ICC,Commercial Development,Regeneration and Housing,Regeneration & Housing,Repair & Maintenance,Premises Related Expenditure,Revenue
Cherwell District Council,18/12/2020,C050696,1425.00,The ICC,Commercial Development,Regeneration and Housing,Regeneration & Housing,Repair & Maintenance,Premises Related Expenditure,Revenue
Cherwell District Council,18/12/2020,C050700,1665.20,The ICC,Commercial Development,Regeneration and Housing,Regeneration & Housing,Repair & Maintenance,Premises Related Expenditure,Revenue
Cherwell District Council,18/12/2020,C050701,3047.80,The ICC,Commercial Development,Regeneration and Housing,Regeneration & Housing,Repair & Maintenance,Premises Related Expenditure,Revenue
Cherwell District Council,18/12/2020,C050702,525.00,The ICC,Commercial Development,Regeneration and Housing,Regeneration & Housing,Repair & Maintenance,Premises Related Expenditure,Revenue
Cherwell District Council,16/12/2020,C050759,425.00,The ICC,Commercial Development,Regeneration and Housing,Regeneration & Housing,Landscape Maintenance,Premises Related Expenditure,Revenue
Cherwell District Council,16/12/2020,C050759,425.00,The ICC,Commercial Development,Regeneration and Housing,Regeneration & Housing,Landscape Maintenance,Premises Related Expenditure,Revenue
Cherwell District Council,18/12/2020,C050807,1737.50,The ICC,Commercial Development,Regeneration and Housing,Regeneration & Housing,Repair & Maintenance,Premises Related Expenditure,Revenue
Cherwell District Council,02/12/2020,C050019,652.70,The Phoenix Works,Operations and Delivery Cap,Capital Environmental Services,Finance & Procurement,Contractors Capital Payments,Capital Works,Capital
Cherwell District Council,09/12/2020,C050373,500.00,The Somerton Resilience Fund,Strategy and Commissioning,Business Support Unit,Resources,Grants Paid Out,Supplies and Services,Revenue
Cherwell District Council,10/12/2020,C050399,12685.00,The Velvet Principle,Chief Finance Officer Capital,Capital Finance and Procuremen,Finance & Procurement,Other Prof.Fees (Capital),Professional Fees,Capital
Cherwell District Council,18/12/2020,C050609,2806.12,REDACTED,Commercial Development,Regeneration and Housing,Regeneration & Housing,Rental Income (Commercial),Rent Income,Revenue
Cherwell District Council,09/12/2020,C050440,5102.70,TMPW,Strategy and Commissioning,Strategic Planning Economy,Finance & Procurement,Recruitment,Employees,Revenue
Cherwell District Council,21/12/2020,C050870,882.00,TMPW,Commercial Development,Human Resources,Finance & Procurement,Recruitment,Employees,Revenue
Cherwell District Council,09/12/2020,C050483,1144.00,Total Pest Control (UK) Ltd,Operations and Delivery,Environmental Services,Finance & Procurement,Contractor Ad Hoc Payments,Third Party Payments,Revenue
Cherwell District Council,23/12/2020,C050906,216.00,Town & Country Planning Association,Commercial Development,Bicester Regeneration Projects,Bicester Regeneration projects,Subscriptions,Supplies and Services,Revenue
Cherwell District Council,23/12/2020,C050906,4320.00,Town & Country Planning Association,Commercial Development,Bicester Regeneration Projects,Bicester Regeneration projects,Subscriptions,Supplies and Services,Revenue
Cherwell District Council,02/12/2020,C050222,1225.40,Unison,Current Liabilities,Short-term creditors - current,Finance & Procurement,Credited to Other Accounts,Other Debit Transactions,Balance Sheet
Cherwell District Council,30/12/2020,C051029,1225.40,Unison,Current Liabilities,Short-term creditors - current,Finance & Procurement,Credited to Other Accounts,Other Debit Transactions,Balance Sheet
Cherwell District Council,21/12/2020,C050568,895.00,Varndell Engineering Ltd,Commercial Development,Regeneration and Housing,Regeneration & Housing,Professional Fees,Third Party Payments,Revenue
Cherwell District Council,21/12/2020,C050874,630.00,Varndell Engineering Ltd,Commercial Development,Regeneration and Housing,Regeneration & Housing,Professional Fees,Third Party Payments,Revenue
Cherwell District Council,21/12/2020,C050630,638.00,Veale Wasbrough Vizards,Commercial Development Capital,Capital Regen and Housing,Finance & Procurement,Contractors Capital Payments,Capital Works,Capital
Cherwell District Council,02/12/2020,C050331,1017.50,Venn Group Limited,Strategy and Commissioning,Law and Governance,Law & Governance,Consultancy,Supplies and Services,Revenue
Cherwell District Council,02/12/2020,C050332,952.32,Venn Group Limited,Strategy and Commissioning,Law and Governance,Law & Governance,Consultancy,Supplies and Services,Revenue
Cherwell District Council,02/12/2020,C050333,958.32,Venn Group Limited,Strategy and Commissioning,Law and Governance,Law & Governance,Consultancy,Supplies and Services,Revenue
Cherwell District Council,02/12/2020,C050334,1063.70,Venn Group Limited,Strategy and Commissioning,Law and Governance,Law & Governance,Consultancy,Supplies and Services,Revenue
Cherwell District Council,02/12/2020,C050344,2002.00,Venn Group Limited,Strategy and Commissioning,Law and Governance,Law & Governance,Consultancy,Supplies and Services,Revenue
Cherwell District Council,02/12/2020,C050345,2574.00,Venn Group Limited,Strategy and Commissioning,Law and Governance,Law & Governance,Consultancy,Supplies and Services,Revenue
Cherwell District Council,09/12/2020,C050525,2211.00,Venn Group Limited,Strategy and Commissioning,Law and Governance,Law & Governance,Consultancy,Supplies and Services,Revenue
Cherwell District Council,09/12/2020,C050526,1182.50,Venn Group Limited,Strategy and Commissioning,Law and Governance,Law & Governance,Consultancy,Supplies and Services,Revenue
Cherwell District Council,09/12/2020,C050527,978.00,Venn Group Limited,Strategy and Commissioning,Law and Governance,Law & Governance,Consultancy,Supplies and Services,Revenue
Cherwell District Council,18/12/2020,C050797,926.16,Venn Group Limited,Strategy and Commissioning,Law and Governance,Law & Governance,Consultancy,Supplies and Services,Revenue
Cherwell District Council,18/12/2020,C050798,1108.80,Venn Group Limited,Strategy and Commissioning,Law and Governance,Law & Governance,Consultancy,Supplies and Services,Revenue
Cherwell District Council,18/12/2020,C050801,2249.50,Venn Group Limited,Strategy and Commissioning,Law and Governance,Law & Governance,Consultancy,Supplies and Services,Revenue
Cherwell District Council,18/12/2020,C050802,880.00,Venn Group Limited,Strategy and Commissioning,Law and Governance,Law & Governance,Consultancy,Supplies and Services,Revenue
Cherwell District Council,18/12/2020,C050803,962.50,Venn Group Limited,Strategy and Commissioning,Law and Governance,Law & Governance,Consultancy,Supplies and Services,Revenue
Cherwell District Council,18/12/2020,C050804,907.50,Venn Group Limited,Strategy and Commissioning,Law and Governance,Law & Governance,Consultancy,Supplies and Services,Revenue
Cherwell District Council,18/12/2020,C050805,907.50,Venn Group Limited,Strategy and Commissioning,Law and Governance,Law & Governance,Consultancy,Supplies and Services,Revenue
Cherwell District Council,18/12/2020,C050806,907.50,Venn Group Limited,Strategy and Commissioning,Law and Governance,Law & Governance,Consultancy,Supplies and Services,Revenue
Cherwell District Council,30/12/2020,C051057,1826.00,Venn Group Limited,Strategy and Commissioning,Law and Governance,Law & Governance,Consultancy,Supplies and Services,Revenue
Cherwell District Council,30/12/2020,C051058,966.00,Venn Group Limited,Strategy and Commissioning,Law and Governance,Law & Governance,Consultancy,Supplies and Services,Revenue
Cherwell District Council,30/12/2020,C051066,935.00,Venn Group Limited,Strategy and Commissioning,Law and Governance,Law & Governance,Consultancy,Supplies and Services,Revenue
Cherwell District Council,30/12/2020,C051067,1118.15,Venn Group Limited,Strategy and Commissioning,Law and Governance,Law & Governance,Consultancy,Supplies and Services,Revenue
Cherwell District Council,30/12/2020,C051074,1123.10,Venn Group Limited,Strategy and Commissioning,Law and Governance,Law & Governance,Consultancy,Supplies and Services,Revenue
Cherwell District Council,30/12/2020,C051075,1086.25,Venn Group Limited,Strategy and Commissioning,Law and Governance,Law & Governance,Consultancy,Supplies and Services,Revenue
Cherwell District Council,30/12/2020,C051076,2095.50,Venn Group Limited,Strategy and Commissioning,Law and Governance,Law & Governance,Consultancy,Supplies and Services,Revenue
Cherwell District Council,30/12/2020,C051077,986.16,Venn Group Limited,Strategy and Commissioning,Law and Governance,Law & Governance,Consultancy,Supplies and Services,Revenue
Cherwell District Council,07/12/2020,C050437,500.00,Voices Across Time,Operations and Delivery,Community Services,Community Services,Activities (workshop fees),Supplies and Services,Revenue
Cherwell District Council,23/12/2020,C050925,641.91,WasteParts Uk Ltd,Operations and Delivery,Environmental Services,Environmental Services,Vehicle Repair & Maintenance,Transport Related Expenditure,Revenue
Cherwell District Council,04/12/2020,C050365,774.00,West Midlands Employers,Commercial Development,Human Resources,Transformation,CPD Training,Employees,Revenue
